Workbook

Sheet OVERALL STATS
A1: OVERALL TITLE COMPANY MARKET STATISTICS (Washoe County, NV)
A2: Reporting Period: SEPTEMBER, 2020
A5: OVERALL SALES MARKET (Resales & Subdivision Sales)
A6: TITLE COMPANY | B6: CLOSINGS | C6: DOLLAR VOLUME | D6: CLOSINGS | E6: DOLLAR VOLUME | F6: CLOSINGS | G6: DOLLAR VOLUME
A7: First Centennial Title | B7: 444 | C7: 258339331.9 | D7: =B7/$B$19 -> 0.3452566096 | E7: =C7/$C$19 -> 0.2958465526 | F7: 1 | G7: =RANK(C7,$C$7:$C$18) -> 1
A8: Western Title | B8: 202 | C8: 83495428.65 | D8: =B8/$B$19 -> 0.1570762053 | E8: =C8/$C$19 -> 0.09561778513 | F8: 2 | G8: =RANK(C8,$C$7:$C$18) -> 4
A9: Ticor Title | B9: 187 | C9: 172103525.9 | D9: =B9/$B$19 -> 0.1454121306 | E9: =C9/$C$19 -> 0.1970905261 | F9: 3 | G9: 3
A10: First American Title | B10: 120 | C10: 194963488.1 | D10: 0.0933125972 | E10: 0.2232694319 | F10: 4 | G10: 2
A11: Stewart Title | B11: 101 | C11: 45869050 | D11: 0.07853810264 | E11: 0.05252858795 | F11: 5 | G11: 5
A12: DHI Title of Nevada | B12: 70 | C12: 28162950 | D12: 0.05443234837 | E12: 0.03225181241 | F12: 6 | G12: 7
A13: Westminster Title - Las Vegas | B13: 43 | C13: 32953905 | D13: 0.033437014 | E13: 0.03773834638 | F13: 7 | G13: 6
A14: Calatlantic Title West | B14: 41 | C14: 18700902 | D14: 0.03188180404 | E14: 0.02141600873 | F14: 8 | G14: 8
A15: Acme Title and Escrow | B15: 23 | C15: 8702900 | D15: =B15/$B$19 -> 0.01788491446 | E15: =C15/$C$19 -> 0.009966438111 | F15: 9 | G15: 10
A16: Signature Title Company | B16: 22 | C16: 18056712 | D16: 0.01710730949 | E16: 0.02067829145 | F16: 10 | G16: 9
A17: Toiyabe Title | B17: 21 | C17: 7056100 | D17: =B17/$B$19 -> 0.01632970451 | E17: =C17/$C$19 -> 0.00808054602 | F17: 11 | G17: 11
A18: True Title and Escrow | B18: 12 | C18: 4816400 | D18: 0.00933125972 | E18: 0.005515673226 | F18: 12 | G18: 12
A19: GRAND TOTAL | B19: =SUM(B7:B18) -> 1286 | C19: =SUM(C7:C18) -> 873220693.6 | D19: =SUM(D7:D18) -> 1 | E19: =SUM(E7:E18) -> 1
A21: OVERALL LOAN ONLY MARKET (Refi's, Construction, Commercial, Credit Lines, Homequity, etc.)
D22: % OF | E22: % OF | F22: RANK BY | G22: RANK BY
A23: TITLECOMPANY | B23: CLOSINGS | C23: DOLLAR VOLUME | D23: CLOSINGS | E23: DOLLAR VOLUME | F23: CLOSINGS | G23: DOLLAR VOLUME
A24: First Centennial Title | B24: 382 | C24: 224061437.4 | D24: =B24/$B$34 -> 0.2942989214 | E24: =C24/$C$34 -> 0.3943484789 | F24: 1 | G24: =RANK(C24,$C$24:$C$33) -> 1
A25: Western Title | B25: 214 | C25: 74511555.93 | D25: =B25/$B$34 -> 0.1648690293 | E25: =C25/$C$34 -> 0.1311404545 | F25: 2 | G25: =RANK(C25,$C$24:$C$33) -> 4
A26: First American Title | B26: 209 | C26: 81385131 | D26: =B26/$B$34 -> 0.1610169492 | E26: =C26/$C$34 -> 0.1432379573 | F26: 3 | G26: 3
A27: Ticor Title | B27: 201 | C27: 105547338 | D27: =B27/$B$34 -> 0.154853621 | E27: =C27/$C$34 -> 0.1857634793 | F27: 4 | G27: 2
A28: Stewart Title | B28: 185 | C28: 48141135 | D28: =B28/$B$34 -> 0.1425269646 | E28: =C28/$C$34 -> 0.08472847258 | F28: 5 | G28: 5
A29: Acme Title and Escrow | B29: 59 | C29: 17400850 | D29: =B29/$B$34 -> 0.04545454545 | E29: =C29/$C$34 -> 0.0306255231 | F29: 6 | G29: 6
A30: Toiyabe Title | B30: 26 | C30: 7895710 | D30: 0.02003081664 | E30: 0.0138964619 | F30: 7 | G30: 7
A31: Signature Title Company | B31: 12 | C31: 6326946 | D31: 0.009244992296 | E31: 0.01113543481 | F31: 8 | G31: 8
A32: True Title and Escrow | B32: 6 | C32: 1791212 | D32: 0.004622496148 | E32: 0.00315253591 | F32: 9 | G32: 9
A33: Calatlantic Title West | B33: 4 | C33: 1120000 | D33: 0.003081664099 | E33: 0.001971201744 | F33: 10 | G33: 10
A34: GRAND TOTAL | B34: =SUM(B24:B33) -> 1298 | C34: =SUM(C24:C33) -> 568181315.4 | D34: =SUM(D24:D33) -> 1 | E34: =SUM(E24:E33) -> 1
A36: OVERALL SALES AND LOAN ONLY MARKETS COMBINED
D37: % OF | E37: % OF | F37: RANK BY | G37: RANK BY
A38: TITLECOMPANY | B38: CLOSINGS | C38: DOLLAR VOLUME | D38: CLOSINGS | E38: DOLLAR VOLUME | F38: CLOSINGS | G38: DOLLAR VOLUME
A39: First Centennial Title | B39: 826 | C39: 482400769.3 | D39: =B39/$B$51 -> 0.3196594427 | E39: =C39/$C$51 -> 0.3346746892 | F39: 1 | G39: =RANK(C39,$C$39:$C$50) -> 1
A40: Western Title | B40: 416 | C40: 158006984.6 | D40: =B40/$B$51 -> 0.1609907121 | E40: =C40/$C$51 -> 0.1096203444 | F40: 2 | G40: =RANK(C40,$C$39:$C$50) -> 4
A41: Ticor Title | B41: 388 | C41: 277650863.9 | D41: =B41/$B$51 -> 0.1501547988 | E41: =C41/$C$51 -> 0.1926255564 | F41: 3 | G41: 2
A42: First American Title | B42: 329 | C42: 276348619.1 | D42: =B42/$B$51 -> 0.1273219814 | E42: =C42/$C$51 -> 0.1917220993 | F42: 4 | G42: 3
A43: Stewart Title | B43: 286 | C43: 94010185 | D43: =B43/$B$51 -> 0.1106811146 | E43: =C43/$C$51 -> 0.06522135006 | F43: 5 | G43: 5
A44: Acme Title and Escrow | B44: 82 | C44: 26103750 | D44: =B44/$B$51 -> 0.03173374613 | E44: =C44/$C$51 -> 0.01810997198 | F44: 6 | G44: 8
A45: DHI Title of Nevada | B45: 70 | C45: 28162950 | D45: =B45/$B$51 -> 0.02708978328 | E45: =C45/$C$51 -> 0.01953858107 | F45: 7 | G45: 7
A46: Toiyabe Title | B46: 47 | C46: 14951810 | D46: =B46/$B$51 -> 0.01818885449 | E46: =C46/$C$51 -> 0.01037310196 | F46: 8 | G46: 11
A47: Calatlantic Title West | B47: 45 | C47: 19820902 | D47: =B47/$B$51 -> 0.01741486068 | E47: =C47/$C$51 -> 0.01375112694 | F47: 9 | G47: 10
A48: Westminster Title - Las Vegas | B48: 43 | C48: 32953905 | D48: =B48/$B$51 -> 0.01664086687 | E48: 0.02286239702 | F48: 10 | G48: 6
A49: Signature Title Company | B49: 34 | C49: 24383658 | D49: =B49/$B$51 -> 0.01315789474 | E49: =C49/$C$51 -> 0.01691662551 | F49: 11 | G49: 9
A50: True Title and Escrow | B50: 18 | C50: 6607612 | D50: 0.006965944272 | E50: 0.00458415623 | F50: 12 | G50: 12
A51: GRAND TOTAL | B51: =SUM(B39:B50) -> 2584 | C51: =SUM(C39:C50) -> 1441402009 | D51: =SUM(D39:D50) -> 1 | E51: =SUM(E39:E50) -> 1
A53: Information provided by Datasource | D53: SEE CHARTS BELOW:
A54: www.datasourcenev.com

Sheet SALES STATS
A1: SALES MARKET (Washoe County, NV)
A2: ='OVERALL STATS'!A2 -> Reporting Period: SEPTEMBER, 2020
A4: RESALE MARKET (Includes ALL types of real property)
D5: % OF | E5: % OF | F5: RANK BY | G5: RANK BY
A6: TITLE COMPANY | B6: CLOSINGS | C6: DOLLAR VOLUME | D6: CLOSINGS | E6: DOLLAR VOLUME | F6: CLOSINGS | G6: DOLLAR VOLUME
A7: First Centennial Title | B7: 426 | C7: 249619319.9 | D7: =B7/$B$16 -> 0.3992502343 | E7: =C7/$C$16 -> 0.3274651094 | F7: 1 | G7: =RANK(C7,$C$7:$C$15) -> 1
A8: Ticor Title | B8: 184 | C8: 170255361.9 | D8: =B8/$B$16 -> 0.1724461106 | E8: =C8/$C$16 -> 0.2233508639 | F8: 2 | G8: =RANK(C8,$C$7:$C$15) -> 3
A9: Western Title | B9: 176 | C9: 72905897.65 | D9: =B9/$B$16 -> 0.1649484536 | E9: =C9/$C$16 -> 0.09564218733 | F9: 3 | G9: 4
A10: First American Title | B10: 102 | C10: 184995865.1 | D10: 0.09559512652 | E10: 0.2426883114 | F10: 4 | G10: 2
A11: Stewart Title | B11: 101 | C11: 45869050 | D11: 0.0946579194 | E11: 0.06017368161 | F11: 5 | G11: 5
A12: Acme Title and Escrow | B12: 23 | C12: 8702900 | D12: 0.02155576382 | E12: 0.01141696926 | F12: 6 | G12: 7
A13: Signature Title Company | B13: 22 | C13: 18056712 | D13: 0.0206185567 | E13: 0.02368784265 | F13: 7 | G13: 6
A14: Toiyabe Title | B14: 21 | C14: 7056100 | D14: 0.01968134958 | E14: 0.009256601452 | F14: 8 | G14: 8
A15: True Title and Escrow | B15: 12 | C15: 4816400 | D15: 0.01124648547 | E15: 0.00631843302 | F15: 9 | G15: 9
A16: GRAND TOTAL | B16: =SUM(B7:B15) -> 1067 | C16: =SUM(C7:C15) -> 762277606.6 | D16: =SUM(D7:D15) -> 1 | E16: =SUM(E7:E15) -> 1
A18: SUBDIVISION SALES (Builder/Developer Sales)
D19: % OF | E19: % OF | F19: RANK BY | G19: RANK BY
A20: TITLE COMPANY | B20: CLOSINGS | C20: DOLLAR VOLUME | D20: CLOSINGS | E20: DOLLAR VOLUME | F20: CLOSINGS | G20: DOLLAR VOLUME
A21: DHI Title of Nevada | B21: 70 | C21: 28162950 | D21: =B21/$B$28 -> 0.3196347032 | E21: =C21/$C$28 -> 0.2538504269 | F21: 1 | G21: =RANK(C21,$C$21:$C$27) -> 2
A22: Westminster Title - Las Vegas | B22: 43 | C22: 32953905 | D22: =B22/$B$28 -> 0.196347032 | E22: =C22/$C$28 -> 0.2970343254 | F22: 2 | G22: =RANK(C22,$C$21:$C$27) -> 1
A23: Calatlantic Title West | B23: 41 | C23: 18700902 | D23: 0.1872146119 | E23: =C23/$C$28 -> 0.1685630219 | F23: 3 | G23: 3
A24: Western Title | B24: 26 | C24: 10589531 | D24: 0.1187214612 | E24: =C24/$C$28 -> 0.09545012029 | F24: 4 | G24: 4
A25: First Centennial Title | B25: 18 | C25: 8720012 | D25: 0.08219178082 | E25: =C25/$C$28 -> 0.07859896669 | F25: 5 | G25: 6
A26: First American Title | B26: 18 | C26: 9967623 | D26: 0.08219178082 | E26: =C26/$C$28 -> 0.08984447134 | F26: 5 | G26: 5
A27: Ticor Title | B27: 3 | C27: 1848164 | D27: 0.01369863014 | E27: =C27/$C$28 -> 0.01665866752 | F27: 6 | G27: 7
A28: GRAND TOTAL | B28: =SUM(B21:B27) -> 219 | C28: =SUM(C21:C27) -> 110943087 | D28: =SUM(D21:D27) -> 1 | E28: =SUM(E21:E27) -> 1
A30: RESIDENTIAL RESALE MARKET (Residential Properties Only)
D31: % OF | E31: % OF | F31: RANK BY | G31: RANK BY
A32: TITLE COMPANY | B32: CLOSINGS | C32: DOLLAR VOLUME | D32: CLOSINGS | E32: DOLLAR VOLUME | F32: CLOSINGS | G32: DOLLAR VOLUME
A33: First Centennial Title | B33: 386 | C33: 229161646.9 | D33: =B33/$B$42 -> 0.4029227557 | E33: =C33/$C$42 -> 0.3932399225 | F33: 1 | G33: =RANK(C33,$C$33:$C$41) -> 1
A34: Ticor Title | B34: 166 | C34: 144382575 | D34: =B34/$B$42 -> 0.1732776618 | E34: =C34/$C$42 -> 0.2477595766 | F34: 2 | G34: =RANK(C34,$C$33:$C$41) -> 2
A35: Western Title | B35: 154 | C35: 66500197.65 | D35: =B35/$B$42 -> 0.1607515658 | E35: =C35/$C$42 -> 0.1141139145 | F35: 3 | G35: 3
A36: Stewart Title | B36: 92 | C36: 40523050 | D36: =B36/$B$42 -> 0.09603340292 | E36: =C36/$C$42 -> 0.06953729501 | F36: 4 | G36: 5
A37: First American Title | B37: 85 | C37: 64098170 | D37: =B37/$B$42 -> 0.08872651357 | E37: =C37/$C$42 -> 0.1099920504 | F37: 5 | G37: 4
A38: Signature Title Company | B38: 22 | C38: 18056712 | D38: =B38/$B$42 -> 0.02296450939 | E38: =C38/$C$42 -> 0.03098520248 | F38: 6 | G38: 6
A39: Acme Title and Escrow | B39: 22 | C39: 8562900 | D39: 0.02296450939 | E39: 0.01469388172 | F39: 6 | G39: 7
A40: Toiyabe Title | B40: 19 | C40: 6651100 | D40: 0.01983298539 | E40: 0.01141324512 | F40: 7 | G40: 8
A41: True Title and Escrow | B41: 12 | C41: 4816400 | D41: =B41/$B$42 -> 0.01252609603 | E41: =C41/$C$42 -> 0.008264911641 | F41: 8 | G41: 9
A42: GRAND TOTAL | B42: =SUM(B33:B41) -> 958 | C42: =SUM(C33:C41) -> 582752751.5 | D42: =SUM(D33:D41) -> 1 | E42: =SUM(E33:E41) -> 1
A44: COMMERCIAL/INDUSTRIAL, APARTMENTS, MOBILE HOME PARKS SALES MARKET
D45: % OF | E45: % OF | F45: RANK BY | G45: RANK BY
A46: TITLE COMPANY | B46: CLOSINGS | C46: DOLLAR VOLUME | D46: CLOSINGS | E46: DOLLAR VOLUME | F46: CLOSINGS | G46: DOLLAR VOLUME
A47: First Centennial Title | B47: 8 | C47: 10052500 | D47: =B47/$B$52 -> 0.3076923077 | E47: =C47/$C$52 -> 0.07711525412 | F47: 1 | G47: =RANK(C47,$C$47:$C$51) -> 3
A48: Ticor Title | B48: 6 | C48: 13852836.93 | D48: =B48/$B$52 -> 0.2307692308 | E48: =C48/$C$52 -> 0.1062685939 | F48: 2 | G48: =RANK(C48,$C$47:$C$51) -> 2
A49: First American Title | B49: 5 | C49: 99636492.14 | D49: =B49/$B$52 -> 0.1923076923 | E49: =C49/$C$52 -> 0.7643365741 | F49: 3 | G49: 1
A50: Western Title | B50: 4 | C50: 4165000 | D50: =B50/$B$52 -> 0.1538461538 | E50: =C50/$C$52 -> 0.03195076184 | F50: 4 | G50: 4
A51: Stewart Title | B51: 3 | C51: 2650000 | D51: =B51/$B$52 -> 0.1153846154 | E51: =C51/$C$52 -> 0.02032881606 | F51: 5 | G51: 5
A52: GRAND TOTAL | B52: =SUM(B47:B51) -> 26 | C52: =SUM(C47:C51) -> 130356829.1 | D52: =SUM(D47:D51) -> 1 | E52: =SUM(E47:E51) -> 1
A54: VACANT LAND SALES
D55: % OF | E55: % OF | F55: RANK BY | G55: RANK BY
A56: TITLE COMPANY | B56: CLOSINGS | C56: DOLLAR VOLUME | D56: CLOSINGS | E56: DOLLAR VOLUME | F56: CLOSINGS | G56: DOLLAR VOLUME
A57: First Centennial Title | B57: 32 | C57: 10405173 | D57: =B57/$B$64 -> 0.3855421687 | E57: =C57/$C$64 -> 0.2116247864 | F57: 1 | G57: =RANK(C57,$C$57:$C$63) -> 3
A58: Western Title | B58: 18 | C58: 2240700 | D58: =B58/$B$64 -> 0.2168674699 | E58: =C58/$C$64 -> 0.04557229936 | F58: 2 | G58: =RANK(C58,$C$57:$C$63) -> 5
A59: Ticor Title | B59: 12 | C59: 12019950 | D59: =B59/$B$64 -> 0.1445783133 | E59: =C59/$C$64 -> 0.2444668004 | F59: 3 | G59: 2
A60: First American Title | B60: 12 | C60: 21261203 | D60: =B60/$B$64 -> 0.1445783133 | E60: =C60/$C$64 -> 0.4324192922 | F60: 3 | G60: 1
A61: Stewart Title | B61: 6 | C61: 2696000 | D61: =B61/$B$64 -> 0.07228915663 | E61: =C61/$C$64 -> 0.05483238233 | F61: 4 | G61: 4
A62: Toiyabe Title | B62: 2 | C62: 405000 | D62: =B62/$B$64 -> 0.02409638554 | E62: =C62/$C$64 -> 0.008237060402 | F62: 5 | G62: 6
A63: Acme Title and Escrow | B63: 1 | C63: 140000 | D63: =B63/$B$64 -> 0.01204819277 | E63: =C63/$C$64 -> 0.002847378904 | F63: 6 | G63: 7
A64: GRAND TOTAL | B64: =SUM(B57:B63) -> 83 | C64: =SUM(C57:C63) -> 49168026 | D64: =SUM(D57:D63) -> 1 | E64: =SUM(E57:E63) -> 1
A66: INCLINE VILLAGE SALES MARKET
D67: % OF | E67: % OF | F67: RANK BY | G67: RANK BY
A68: TITLE COMPANY | B68: CLOSINGS | C68: DOLLAR VOLUME | D68: CLOSINGS | E68: DOLLAR VOLUME | F68: CLOSINGS | G68: DOLLAR VOLUME
A69: Ticor Title | B69: 35 | C69: 84816600 | D69: =B69/$B$72 -> 0.3645833333 | E69: =C69/$C$72 -> 0.5053379368 | F69: 1 | G69: =RANK(C69,$C$69:$C$71) -> 1
A70: First Centennial Title | B70: 34 | C70: 45924000 | D70: =B70/$B$72 -> 0.3541666667 | E70: =C70/$C$72 -> 0.2736155353 | F70: 2 | G70: =RANK(C70,$C$69:$C$71) -> 2
A71: First American Title | B71: 27 | C71: 37100747 | D71: =B71/$B$72 -> 0.28125 | E71: =C71/$C$72 -> 0.2210465279 | F71: 3 | G71: 3
A72: GRAND TOTAL | B72: =SUM(B69:B71) -> 96 | C72: =SUM(C69:C71) -> 167841347 | D72: =SUM(D69:D71) -> 1 | E72: =SUM(E69:E71) -> 1
A74: RESIDENTIAL RESALE MARKET (Excluding Incline Village)
D75: % OF | E75: % OF | F75: RANK BY | G75: RANK BY
A76: TITLE COMPANY | B76: CLOSINGS | C76: DOLLAR VOLUME | D76: CLOSINGS | E76: DOLLAR VOLUME | F76: CLOSINGS | G76: DOLLAR VOLUME
A77: First Centennial Title | B77: 353 | C77: 183696646.9 | D77: =B77/$B$86 -> 0.4066820276 | E77: =C77/$C$86 -> 0.4321044788 | F77: 1 | G77: =RANK(C77,$C$77:$C$85) -> 1
A78: Western Title | B78: 154 | C78: 66500197.65 | D78: =B78/$B$86 -> 0.1774193548 | E78: =C78/$C$86 -> 0.1564265529 | F78: 2 | G78: =RANK(C78,$C$77:$C$85) -> 3
A79: Ticor Title | B79: 134 | C79: 68993475 | D79: =B79/$B$86 -> 0.1543778802 | E79: =C79/$C$86 -> 0.1622914194 | F79: 3 | G79: 2
A80: Stewart Title | B80: 92 | C80: 40523050 | D80: =B80/$B$86 -> 0.1059907834 | E80: =C80/$C$86 -> 0.09532123584 | F80: 4 | G80: 4
A81: First American Title | B81: 60 | C81: 27320423 | D81: =B81/$B$86 -> 0.06912442396 | E81: =C81/$C$86 -> 0.06426506603 | F81: 5 | G81: 5
A82: Signature Title Company | B82: 22 | C82: 18056712 | D82: =B82/$B$86 -> 0.02534562212 | E82: =C82/$C$86 -> 0.04247429804 | F82: 6 | G82: 6
A83: Acme Title and Escrow | B83: 22 | C83: 8562900 | D83: =B83/$B$86 -> 0.02534562212 | E83: =C83/$C$86 -> 0.0201422699 | F83: 6 | G83: 7
A84: Toiyabe Title | B84: 19 | C84: 6651100 | D84: =B84/$B$86 -> 0.02188940092 | E84: =C84/$C$86 -> 0.01564519629 | F84: 7 | G84: 8
A85: True Title and Escrow | B85: 12 | C85: 4816400 | D85: =B85/$B$86 -> 0.01382488479 | E85: =C85/$C$86 -> 0.01132948286 | F85: 8 | G85: 9
A86: GRAND TOTAL | B86: =SUM(B77:B85) -> 868 | C86: =SUM(C77:C85) -> 425120904.5 | D86: =SUM(D77:D85) -> 1 | E86: =SUM(E77:E85) -> 1
A88: Information provided by Datasource
A89: www.datasourcenev.com

Sheet LOAN ONLY STATS
A1: LOAN ONLY MARKETS (Washoe County, NV)
A2: ='OVERALL STATS'!A2 -> Reporting Period: SEPTEMBER, 2020
A4: CONVENTIONAL LOANS MARKET (Refi's)
D5: % OF | E5: % OF | F5: RANK BY | G5: RANK BY
A6: TITLECOMPANY | B6: CLOSINGS | C6: DOLLAR VOLUME | D6: CLOSINGS | E6: DOLLAR VOLUME | F6: CLOSINGS | G6: DOLLAR VOLUME
A7: First Centennial Title | B7: 352 | C7: 107608841 | D7: =B7/$B$17 -> 0.2854825629 | E7: =C7/$C$17 -> 0.2871465394 | F7: 1 | G7: =RANK(C7,$C$7:$C$16) -> 1
A8: Western Title | B8: 208 | C8: 64929753 | D8: =B8/$B$17 -> 0.1686942417 | E8: =C8/$C$17 -> 0.1732604283 | F8: 2 | G8: =RANK(C8,$C$7:$C$16) -> 2
A9: First American Title | B9: 198 | C9: 61162931 | D9: 0.1605839416 | E9: 0.1632089316 | F9: 3 | G9: 3
A10: Ticor Title | B10: 187 | C10: 58944338 | D10: 0.1516626115 | E10: 0.157288774 | F10: 4 | G10: 4
A11: Stewart Title | B11: 182 | C11: 47579135 | D11: 0.1476074615 | E11: 0.1269615381 | F11: 5 | G11: 5
A12: Acme Title and Escrow | B12: 58 | C12: 17393486 | D12: 0.04703974047 | E12: 0.04641328042 | F12: 6 | G12: 6
A13: Toiyabe Title | B13: 26 | C13: 7895710 | D13: =B13/$B$17 -> 0.02108678021 | E13: =C13/$C$17 -> 0.02106914061 | F13: 7 | G13: 7
A14: Signature Title Company | B14: 12 | C14: 6326946 | D14: =B14/$B$17 -> 0.009732360097 | E14: =C14/$C$17 -> 0.01688300545 | F14: 8 | G14: 8
A15: True Title and Escrow | B15: 6 | C15: 1791212 | D15: =B15/$B$17 -> 0.004866180049 | E15: =C15/$C$17 -> 0.004779721836 | F15: 9 | G15: 9
A16: Calatlantic Title West | B16: 4 | C16: 1120000 | D16: =B16/$B$17 -> 0.003244120032 | E16: =C16/$C$17 -> 0.002988640349 | F16: 10 | G16: 10
A17: GRAND TOTAL | B17: =SUM(B7:B16) -> 1233 | C17: =SUM(C7:C16) -> 374752352 | D17: =SUM(D7:D16) -> 1 | E17: =SUM(E7:E16) -> 1
A19: COMMERCIAL LOANS MARKET
D20: % OF | E20: % OF | F20: RANK BY | G20: RANK BY
A21: TITLECOMPANY | B21: CLOSINGS | C21: DOLLAR VOLUME | D21: CLOSINGS | E21: DOLLAR VOLUME | F21: CLOSINGS | G21: DOLLAR VOLUME
A22: First Centennial Title | B22: 8 | C22: 102526508.2 | D22: =B22/$B$27 -> 0.3636363636 | E22: =C22/$C$27 -> 0.7005257877 | F22: 1 | G22: =RANK(C22,$C$22:$C$26) -> 1
A23: Ticor Title | B23: 8 | C23: 27367000 | D23: =B23/$B$27 -> 0.3636363636 | E23: =C23/$C$27 -> 0.1869886098 | F23: 1 | G23: =RANK(C23,$C$22:$C$26) -> 2
A24: First American Title | B24: 3 | C24: 13503000 | D24: =B24/$B$27 -> 0.1363636364 | E24: =C24/$C$27 -> 0.09226101504 | F24: 2 | G24: 3
A25: Western Title | B25: 2 | C25: 2460000 | D25: =B25/$B$27 -> 0.09090909091 | E25: =C25/$C$27 -> 0.01680827201 | F25: 3 | G25: 4
A26: Stewart Title | B26: 1 | C26: 500000 | D26: =B26/$B$27 -> 0.04545454545 | E26: =C26/$C$27 -> 0.00341631545 | F26: 4 | G26: 5
A27: GRAND TOTAL | B27: =SUM(B22:B26) -> 22 | C27: =SUM(C22:C26) -> 146356508.2 | D27: =SUM(D22:D26) -> 1 | E27: =SUM(E22:E26) -> 1
A29: HOME EQUITY & CREDIT LINE LOANS MARKET
D30: % OF | E30: % OF | F30: RANK BY | G30: RANK BY
A31: TITLECOMPANY | B31: CLOSINGS | C31: DOLLAR VOLUME | D31: CLOSINGS | E31: DOLLAR VOLUME | F31: CLOSINGS | G31: DOLLAR VOLUME
A32: First Centennial Title | B32: 8 | C32: 744658 | D32: =B32/$B$37 -> 0.5 | E32: =C32/$C$37 -> 0.4060245733 | F32: 1 | G32: =RANK(C32,$C$32:$C$36) -> 1
A33: Ticor Title | B33: 3 | C33: 470000 | D33: =B33/$B$37 -> 0.1875 | E33: =C33/$C$37 -> 0.256267373 | F33: 2 | G33: =RANK(C33,$C$32:$C$36) -> 3
A34: First American Title | B34: 2 | C34: 550000 | D34: =B34/$B$37 -> 0.125 | E34: =C34/$C$37 -> 0.2998873514 | F34: 3 | G34: 2
A35: Stewart Title | B35: 2 | C35: 62000 | D35: =B35/$B$37 -> 0.125 | E35: =C35/$C$37 -> 0.03380548325 | F35: 3 | G35: 4
A36: Acme Title and Escrow | B36: 1 | C36: 7364 | D36: =B36/$B$37 -> 0.0625 | E36: =C36/$C$37 -> 0.00401521901 | F36: 4 | G36: 5
A37: GRAND TOTAL | B37: =SUM(B32:B36) -> 16 | C37: =SUM(C32:C36) -> 1834022 | D37: =SUM(D32:D36) -> 1 | E37: =SUM(E32:E36) -> 1
A39: CONSTRUCTION LOANS MARKET
D40: % OF | E40: % OF | F40: RANK BY | G40: RANK BY
A41: TITLECOMPANY | B41: CLOSINGS | C41: DOLLAR VOLUME | D41: CLOSINGS | E41: DOLLAR VOLUME | F41: CLOSINGS | G41: DOLLAR VOLUME
A42: First American Title | B42: 4 | C42: 5380000 | D42: =B42/$B$46 -> 0.3636363636 | E42: =C42/$C$46 -> 0.1389247534 | F42: 1 | G42: =RANK(C42,$C$42:$C$45) -> 4
A43: First Centennial Title | B43: 3 | C43: 11200000 | D43: =B43/$B$46 -> 0.2727272727 | E43: =C43/$C$46 -> 0.2892113825 | F43: 2 | G43: =RANK(C43,$C$42:$C$45) -> 2
A44: Western Title | B44: 3 | C44: 6980000 | D44: =B44/$B$46 -> 0.2727272727 | E44: =C44/$C$46 -> 0.1802406652 | F44: 2 | G44: 3
A45: Ticor Title | B45: 1 | C45: 15166000 | D45: =B45/$B$46 -> 0.09090909091 | E45: =C45/$C$46 -> 0.3916231989 | F45: 3 | G45: 1
A46: GRAND TOTAL | B46: =SUM(B42:B45) -> 11 | C46: =SUM(C42:C45) -> 38726000 | D46: =SUM(D42:D45) -> 1 | E46: =SUM(E42:E45) -> 1
A48: HARD MONEY LOANS MARKET
D49: % OF | E49: % OF | F49: RANK BY | G49: RANK BY
A50: TITLECOMPANY | B50: CLOSINGS | C50: DOLLAR VOLUME | D50: CLOSINGS | E50: DOLLAR VOLUME | F50: CLOSINGS | G50: DOLLAR VOLUME
A51: First Centennial Title | B51: 11 | C51: 1981430.3 | D51: =B51/$B$55 -> 0.6875 | E51: =C51/$C$55 -> 0.3042534534 | F51: 1 | G51: =RANK(C51,$C$51:$C$54) -> 2
A52: Ticor Title | B52: 2 | C52: 3600000 | D52: =B52/$B$55 -> 0.125 | E52: =C52/$C$55 -> 0.5527887769 | F52: 2 | G52: =RANK(C52,$C$51:$C$54) -> 1
A53: First American Title | B53: 2 | C53: 789200 | D53: =B53/$B$55 -> 0.125 | E53: =C53/$C$55 -> 0.1211835841 | F53: 2 | G53: 3
A54: Western Title | B54: 1 | C54: 141802.93 | D54: =B54/$B$55 -> 0.0625 | E54: =C54/$C$55 -> 0.02177418562 | F54: 3 | G54: 4
A55: GRAND TOTAL | B55: =SUM(B51:B54) -> 16 | C55: =SUM(C51:C54) -> 6512433.23 | D55: =SUM(D51:D54) -> 1 | E55: =SUM(E51:E54) -> 1
A57: CONVENTIONAL LOANS MARKET (Refi's) Excluding Incline Village
D58: % OF | E58: % OF | F58: RANK BY | G58: RANK BY
A59: TITLECOMPANY | B59: CLOSINGS | C59: DOLLAR VOLUME | D59: CLOSINGS | E59: DOLLAR VOLUME | F59: CLOSINGS | G59: DOLLAR VOLUME
A60: First Centennial Title | B60: 334 | C60: 99931891 | D60: =B60/$B$70 -> 0.2813816344 | E60: =C60/$C$70 -> 0.2892916324 | F60: 1 | G60: =RANK(C60,$C$60:$C$69) -> 1
A61: Western Title | B61: 204 | C61: 63589553 | D61: =B61/$B$70 -> 0.1718618366 | E61: =C61/$C$70 -> 0.1840846341 | F61: 2 | G61: =RANK(C61,$C$60:$C$69) -> 2
A62: First American Title | B62: 188 | C62: 54343035 | D62: 0.1583824768 | E62: 0.1573170001 | F62: 3 | G62: 3
A63: Stewart Title | B63: 182 | C63: 47579135 | D63: 0.1533277169 | E63: 0.1377362671 | F63: 4 | G63: 5
A64: Ticor Title | B64: 175 | C64: 48765539 | D64: 0.1474304971 | E64: 0.1411707738 | F64: 5 | G64: 4
A65: Acme Title and Escrow | B65: 58 | C65: 17393486 | D65: 0.04886267902 | E65: 0.05035219396 | F65: 6 | G65: 6
A66: Toiyabe Title | B66: 26 | C66: 7895710 | D66: =B66/$B$70 -> 0.02190395956 | E66: =C66/$C$70 -> 0.02285719616 | F66: 7 | G66: 7
A67: Signature Title Company | B67: 11 | C67: 3326946 | D67: =B67/$B$70 -> 0.009267059815 | E67: =C67/$C$70 -> 0.009631136063 | F67: 8 | G67: 8
A68: True Title and Escrow | B68: 6 | C68: 1791212 | D68: =B68/$B$70 -> 0.005054759899 | E68: =C68/$C$70 -> 0.00518535813 | F68: 9 | G68: 9
A69: Calatlantic Title West | B69: 3 | C69: 820000 | D69: =B69/$B$70 -> 0.002527379949 | E69: =C69/$C$70 -> 0.002373808163 | F69: 10 | G69: 10
A70: GRAND TOTAL | B70: =SUM(B60:B69) -> 1187 | C70: =SUM(C60:C69) -> 345436507 | D70: =SUM(D60:D69) -> 1 | E70: =SUM(E60:E69) -> 1
A73: Information provided by Datasource
A74: www.datasourcenev.com

Sheet BRANCH SALES TRACKING
A1: BUILDER/DEVELOPER | B1: (All)
A2: PROPTYPE | B2: (All)
D4: Values
A5: TITLE COMPANY | B5: BRANCH | C5: EO | D5: CLOSINGS | E5: DOLLAR VOL. | F5: % OF CLOSINGS | G5: % OF DOLLAR VOL.
A6: Acme Title and Escrow | D6: 23 | E6: 8702900 | F6: 0.01789883268 | G6: 0.009969221972
B7: LANDER | D7: 23 | E7: 8702900 | F7: 0.01789883268 | G7: 0.009969221972
C8: LTE | D8: 12 | E8: 4923000 | F8: 0.009338521401 | G8: 0.005639324796
C9: RA | D9: 2 | E9: 830000 | F9: 0.001556420233 | G9: 0.0009507697706
C10: YC | D10: 9 | E10: 2949900 | F10: 0.007003891051 | G10: 0.003379127405
A12: DHI Title of Nevada | D12: 70 | E12: 28162950 | F12: 0.05447470817 | G12: 0.0322608211
B13: LONGLEY | D13: 70 | E13: 28162950 | F13: 0.05447470817 | G13: 0.0322608211
C14: N/A | D14: 70 | E14: 28162950 | F14: 0.05447470817 | G14: 0.0322608211
A16: First American Title | D16: 119 | E16: 194719645.1 | F16: 0.09260700389 | G16: 0.2230524727
B17: INCLINE | D17: 27 | E17: 37100747 | F17: 0.02101167315 | G17: 0.04249911893
C18: VD | D18: 27 | E18: 37100747 | F18: 0.02101167315 | G18: 0.04249911893
B20: KIETZKE | D20: 53 | E20: 35958892.14 | F20: 0.04124513619 | G20: 0.04119111763
C21: KS | D21: 12 | E21: 5383900 | F21: 0.009338521401 | G21: 0.006167288395
C22: MLR | D22: 9 | E22: 15942292.14 | F22: 0.007003891051 | G22: 0.01826198728
C23: NMP | D23: 2 | E23: 783000 | F23: 0.001556420233 | G23: 0.0008969310005
C24: TK | D24: 22 | E24: 11223700 | F24: 0.01712062257 | G24: 0.01285681286
C25: TM | D25: 2 | E25: 357000 | F25: 0.001556420233 | G25: 0.0004089455519
C26: MH | D26: 6 | E26: 2269000 | F26: 0.0046692607 | G26: 0.002599152542
B28: LAS VEGAS | D28: 3 | E28: 33485000 | F28: 0.00233463035 | G28: 0.03835725996
C29: NCS | D29: 2 | E29: 33150000 | F29: 0.001556420233 | G29: 0.03797351554
C30: EDH | D30: 1 | E30: 335000 | F30: 0.0007782101167 | G30: 0.0003837444255
B32: SPARKS | D32: 33 | E32: 15231091 | F32: 0.02568093385 | G32: 0.01744730228
C33: CY | D33: 14 | E33: 5692753 | F33: 0.01089494163 | G33: 0.006521081282
C34: JP | D34: 19 | E34: 9538338 | F34: 0.01478599222 | G34: 0.010926221
B36: SP | D36: 1 | E36: 943915 | F36: 0.0007782101167 | G36: 0.001081260058
C37: JP | D37: 1 | E37: 943915 | F37: 0.0007782101167 | G37: 0.001081260058
B39: CHICAGO, IL | D39: 1 | E39: 8000000 | F39: 0.0007782101167 | G39: 0.009164045982
C40: NCS | D40: 1 | E40: 8000000 | F40: 0.0007782101167 | G40: 0.009164045982
B42: SAN JOSE, CA | D42: 1 | E42: 64000000 | F42: 0.0007782101167 | G42: 0.07331236786
C43: NCS | D43: 1 | E43: 64000000 | F43: 0.0007782101167 | G43: 0.07331236786
A45: First Centennial Title | D45: 444 | E45: 258339331.9 | F45: 0.3455252918 | G45: 0.2959291895
B46: CARSON CITY | D46: 3 | E46: 1726000 | F46: 0.00233463035 | G46: 0.001977142921
C47: 18 | D47: 1 | E47: 800000 | F47: 0.0007782101167 | G47: 0.0009164045982
C48: 17 | D48: 2 | E48: 926000 | F48: 0.001556420233 | G48: 0.001060738322
B50: DAMONTE | D50: 41 | E50: 23978902 | F50: 0.03190661479 | G50: 0.02746797007
C51: 24 | D51: 39 | E51: 22812002 | F51: 0.03035019455 | G51: 0.02613127941
C52: LS | D52: 2 | E52: 1166900 | F52: 0.001556420233 | G52: 0.001336690657
B54: INCLINE | D54: 34 | E54: 45924000 | F54: 0.02645914397 | G54: 0.05260620596
C55: 25 | D55: 34 | E55: 45924000 | F55: 0.02645914397 | G55: 0.05260620596
B57: LAKESIDE | D57: 38 | E57: 20737647 | F57: 0.02957198444 | G57: 0.02375509383
C58: 5 | D58: 38 | E58: 20737647 | F58: 0.02957198444 | G58: 0.02375509383
B60: LAKESIDEMOANA | D60: 43 | E60: 18691527.87 | F60: 0.03346303502 | G60: 0.02141125261
C61: 12 | D61: 43 | E61: 18691527.87 | F61: 0.03346303502 | G61: 0.02141125261
B63: RIDGEVIEW | D63: 248 | E63: 131425255 | F63: 0.1929961089 | G63: 0.150548385
C64: 10 | D64: 53 | E64: 38628900 | F64: 0.04124513619 | G64: 0.04424962698
C65: 11 | D65: 29 | E65: 14225000 | F65: 0.02256809339 | G65: 0.01629481926
C66: 15 | D66: 26 | E66: 11505685 | F66: 0.02023346304 | G66: 0.0131798283
C67: 20 | D67: 39 | E67: 18253182 | F67: 0.03035019455 | G67: 0.0209091249
C68: 9 | D68: 101 | E68: 48812488 | F68: 0.07859922179 | G68: 0.05591498557
B70: SPARKS | D70: 37 | E70: 15856000 | F70: 0.02879377432 | G70: 0.01816313914
C71: 21 | D71: 36 | E71: 15273000 | F71: 0.0280155642 | G71: 0.01749530929
C72: KS | D72: 1 | E72: 583000 | F72: 0.0007782101167 | G72: 0.0006678298509
A74: Ticor Title | D74: 187 | E74: 172103525.9 | F74: 0.1455252918 | G74: 0.1971455782
B75: CARSON CITY | D75: 7 | E75: 2665500 | F75: 0.005447470817 | G75: 0.003053345571
C76: DKD | D76: 4 | E76: 1414500 | F76: 0.003112840467 | G76: 0.00162031788
C77: DC | D77: 3 | E77: 1251000 | F77: 0.00233463035 | G77: 0.00143302769
B79: INCLINE | D79: 35 | E79: 84816600 | F79: 0.02723735409 | G79: 0.0971579028
C80: SLP | D80: 35 | E80: 84816600 | F80: 0.02723735409 | G80: 0.0971579028
B82: KIETZKE | D82: 62 | E82: 36871694 | F82: 0.04824902724 | G82: 0.04223673741
C83: AE | D83: 20 | E83: 7924314 | F83: 0.01556420233 | G83: 0.009077347234
C84: CD | D84: 7 | E84: 14206000 | F84: 0.005447470817 | G84: 0.01627305465
C85: KA | D85: 6 | E85: 2084300 | F85: 0.0046692607 | G85: 0.00238757763
C86: RLS | D86: 26 | E86: 11500080 | F86: 0.02023346304 | G86: 0.01317340774
C87: ACM | D87: 3 | E87: 1157000 | F87: 0.00233463035 | G87: 0.00132535015
B89: LAKESIDE | D89: 83 | E89: 47749731.93 | F89: 0.06459143969 | G89: 0.05469759238
C90: JN | D90: 3 | E90: 1155000 | F90: 0.00233463035 | G90: 0.001323059139
C91: SL | D91: 50 | E91: 31161395 | F91: 0.03891050584 | G91: 0.03569555708
C92: NF | D92: 28 | E92: 14748336.93 | F92: 0.02178988327 | G92: 0.01689430472
C93: ASH | D93: 2 | E93: 685000 | F93: 0.001556420233 | G93: 0.0007846714372
A95: Toiyabe Title | D95: 21 | E95: 7056100 | F95: 0.01634241245 | G95: 0.008082803107
B96: MCCARRAN | D96: 21 | E96: 7056100 | F96: 0.01634241245 | G96: 0.008082803107
C97: JH | D97: 14 | E97: 4438900 | F97: 0.01089494163 | G97: 0.005084785464
C98: UNK | D98: 5 | E98: 1899600 | F98: 0.003891050584 | G98: 0.002176002718
C99: CE | D99: 2 | E99: 717600 | F99: 0.001556420233 | G99: 0.0008220149246
A101: Western Title | D101: 202 | E101: 83495428.65 | F101: 0.1571984436 | G101: 0.09564449343
B102: CARSON CITY | D102: 2 | E102: 513000 | F102: 0.001556420233 | G102: 0.0005876444486
C103: AMG | D103: 2 | E103: 513000 | F103: 0.001556420233 | G103: 0.0005876444486
B105: GARDNERVILLE | D105: 1 | E105: 399900 | F105: 0.0007782101167 | G105: 0.0004580877485
C106: WLD | D106: 1 | E106: 399900 | F106: 0.0007782101167 | G106: 0.0004580877485
B108: KIETZKE | D108: 140 | E108: 55565615 | F108: 0.1089494163 | G108: 0.06365073136
C109: JMS | D109: 35 | E109: 14272450 | F109: 0.02723735409 | G109: 0.01634917351
C110: MDD | D110: 34 | E110: 12440077 | F110: 0.02645914397 | G110: 0.01425017971
C111: MLM | D111: 22 | E111: 9965200 | F111: 0.01712062257 | G111: 0.01141519388
C112: PAH | D112: 11 | E112: 5997516 | F112: 0.008560311284 | G112: 0.00687018905
C113: SAB | D113: 26 | E113: 7712400 | F113: 0.02023346304 | G113: 0.008834598529
C114: TEF | D114: 12 | E114: 5177972 | F114: 0.009338521401 | G114: 0.005931396688
B116: SOUTH KIETZKE | D116: 59 | E116: 27016913.65 | F116: 0.04591439689 | G116: 0.03094802987
C117: ASK | D117: 7 | E117: 2682750 | F117: 0.005447470817 | G117: 0.003073105545
C118: CKL | D118: 10 | E118: 6142569 | F118: 0.007782101167 | G118: 0.007036348095
C119: CRF | D119: 29 | E119: 11836594.65 | F119: 0.02256809339 | G119: 0.01355888721
C120: MIF | D120: 8 | E120: 2870000 | F120: 0.006225680934 | G120: 0.003287601496
C121: PHB | D121: 5 | E121: 3485000 | F121: 0.003891050584 | G121: 0.003992087531
A123: Westminster Title - Las Vegas | D123: 43 | E123: 32953905 | F123: 0.03346303502 | G123: 0.03774888759
B124: LAS VEGAS | D124: 43 | E124: 32953905 | F124: 0.03346303502 | G124: 0.03774888759
C125: TB | D125: 43 | E125: 32953905 | F125: 0.03346303502 | G125: 0.03774888759
A127: Stewart Title | D127: 101 | E127: 45869050 | F127: 0.07859922179 | G127: 0.05254326042
B128: PLUMB | D128: 80 | E128: 38266750 | F128: 0.06225680934 | G128: 0.04383478207
C129: UNK | D129: 80 | E129: 38266750 | F129: 0.06225680934 | G129: 0.04383478207
B131: PROFESSIONAL | D131: 21 | E131: 7602300 | F131: 0.01634241245 | G131: 0.008708478346
C132: UNK | D132: 21 | E132: 7602300 | F132: 0.01634241245 | G132: 0.008708478346
A134: Calatlantic Title West | D134: 41 | E134: 18700902 | F134: 0.03190661479 | G134: 0.02142199073
B135: MCCARRAN | D135: 40 | E135: 18303697 | F135: 0.03112840467 | G135: 0.02096699012
C136: LH | D136: 40 | E136: 18303697 | F136: 0.03112840467 | G136: 0.02096699012
B138: SOUTH KIETZKE | D138: 1 | E138: 397205 | F138: 0.0007782101167 | G138: 0.0004550006105
C139: LH | D139: 1 | E139: 397205 | F139: 0.0007782101167 | G139: 0.0004550006105
A141: Signature Title Company | D141: 22 | E141: 18056712 | F141: 0.01712062257 | G141: 0.02068406738
B142: ZEPHYR | D142: 2 | E142: 8145000 | F142: 0.001556420233 | G142: 0.009330144315
C143: JML | D143: 2 | E143: 8145000 | F143: 0.001556420233 | G143: 0.009330144315
B145: RENO CORPORATE | D145: 20 | E145: 9911712 | F145: 0.01556420233 | G145: 0.01135392307
C146: DP | D146: 16 | E146: 8676712 | F146: 0.01245136187 | G146: 0.009939223468
C147: HB | D147: 4 | E147: 1235000 | F147: 0.003112840467 | G147: 0.001414699598
A149: True Title and Escrow | D149: 12 | E149: 4816400 | F149: 0.009338521401 | G149: 0.005517213883
B150: PLUMB | D150: 12 | E150: 4816400 | F150: 0.009338521401 | G150: 0.005517213883
C151: FF | D151: 12 | E151: 4816400 | F151: 0.009338521401 | G151: 0.005517213883
A153: Grand Total | D153: 1285 | E153: 872976850.6 | F153: 1 | G153: 1

Sheet LENDER TRACKING
A1: TYPELOAN | B1: (All)
C3: Values
A4: LENDER | B4: TITLE COMPANY | C4: CLOSINGS | D4: DOLLAR VOL. | E4: % OF CLOSINGS | F4: % OF DOLLAR VOL.
A5: ALL WESTERN MORTGAGE INC | C5: 18 | D5: 5032715 | E5: 0.01386748844 | F5: 0.008857586238
B6: First American Title | C6: 11 | D6: 2627215 | E6: 0.008474576271 | F6: 0.004623902492
B7: First Centennial Title | C7: 5 | D7: 1867400 | E7: 0.003852080123 | F7: 0.003286626908
B8: Western Title | C8: 1 | D8: 297000 | E8: 0.0007704160247 | F8: 0.0005227204626
B9: Stewart Title | C9: 1 | D9: 241100 | E9: 0.0007704160247 | F9: 0.0004243363755
A11: AMERICAN PACIFIC MORTGAGE CORPORATION | C11: 10 | D11: 2772182 | E11: 0.007704160247 | F11: 0.004879044638
B12: First American Title | C12: 5 | D12: 1061118 | E12: 0.003852080123 | F12: 0.001867569333
B13: First Centennial Title | C13: 1 | D13: 369814 | E13: 0.0007704160247 | F13: 0.000650873216
B14: Ticor Title | C14: 3 | D14: 1188250 | E14: 0.002311248074 | F14: 0.002091321851
B15: Western Title | C15: 1 | D15: 153000 | E15: 0.0007704160247 | F15: 0.0002692802383
A17: AXIA FINANCIAL LLC | C17: 47 | D17: 13453626 | E17: 0.03620955316 | F17: 0.02367840271
B18: First American Title | C18: 3 | D18: 1233500 | E18: 0.002311248074 | F18: 0.002170961921
B19: First Centennial Title | C19: 7 | D19: 2016800 | E19: 0.005392912173 | F19: 0.003549571141
B20: Ticor Title | C20: 21 | D20: 5937650 | E20: 0.01617873652 | F20: 0.01045027325
B21: Western Title | C21: 1 | D21: 295500 | E21: 0.0007704160247 | F21: 0.0005200804602
B22: Stewart Title | C22: 15 | D22: 3970176 | E22: 0.01155624037 | F22: 0.006987515943
A24: BANK OF AMERICA NA | C24: 2 | D24: 1684920 | E24: 0.001540832049 | F24: 0.002965461824
B25: Ticor Title | C25: 1 | D25: 935870 | E25: 0.0007704160247 | F25: 0.001647132658
B26: Western Title | C26: 1 | D26: 749050 | E26: 0.0007704160247 | F26: 0.001318329167
A28: BANK OF THE WEST | C28: 1 | D28: 15166000 | E28: 0.0007704160247 | F28: 0.02669218362
B29: Ticor Title | C29: 1 | D29: 15166000 | E29: 0.0007704160247 | F29: 0.02669218362
A31: BAY EQUITY LLC | C31: 17 | D31: 5577759 | E31: 0.01309707242 | F31: 0.009816864527
B32: Acme Title and Escrow | C32: 6 | D32: 1817591 | E32: 0.004622496148 | F32: 0.003198962991
B33: First American Title | C33: 1 | D33: 189000 | E33: 0.0007704160247 | F33: 0.0003326402944
B34: First Centennial Title | C34: 2 | D34: 938400 | E34: 0.001540832049 | F34: 0.001651585462
B35: Ticor Title | C35: 6 | D35: 2009532 | E35: 0.004622496148 | F35: 0.00353677945
B36: Western Title | C36: 1 | D36: 363236 | E36: 0.0007704160247 | F36: 0.0006392959257
B37: Stewart Title | C37: 1 | D37: 260000 | E37: 0.0007704160247 | F37: 0.0004576004049
A39: CALIBER HOME LOANS INC | C39: 29 | D39: 8738871 | E39: 0.02234206471 | F39: 0.01538042657
B40: Acme Title and Escrow | C40: 3 | D40: 587850 | E40: 0.002311248074 | F40: 0.001034616916
B41: First American Title | C41: 7 | D41: 2565500 | E41: 0.005392912173 | F41: 0.004515283996
B42: First Centennial Title | C42: 6 | D42: 1492600 | E42: 0.004622496148 | F42: 0.002626978325
B43: Ticor Title | C43: 3 | D43: 666186 | E43: 0.002311248074 | F43: 0.001172488398
B44: Western Title | C44: 9 | D44: 3184300 | E44: 0.006933744222 | F44: 0.005604372959
B45: Stewart Title | C45: 1 | D45: 242435 | E45: 0.0007704160247 | F45: 0.0004266859776
A47: CARDINAL FINANCIAL COMPANY LIMITED PARTNERSHIP | C47: 28 | D47: 10305972 | E47: 0.02157164869 | F47: 0.01813852677
B48: First American Title | C48: 4 | D48: 1458300 | E48: 0.003081664099 | F48: 0.002566610271
B49: First Centennial Title | C49: 14 | D49: 5245676 | E49: 0.01078582435 | F49: 0.00923239793
B50: Ticor Title | C50: 8 | D50: 3062450 | E50: 0.006163328197 | F50: 0.00538991677
B51: Stewart Title | C51: 1 | D51: 289750 | E51: 0.0007704160247 | F51: 0.0005099604513
B52: True Title and Escrow | C52: 1 | D52: 249796 | E52: 0.0007704160247 | F52: 0.0004396413491
A54: CITY NATIONAL BANK | C54: 4 | D54: 2099000 | E54: 0.003081664099 | F54: 0.003694243269
B55: First Centennial Title | C55: 2 | D55: 835000 | E55: 0.001540832049 | F55: 0.0014696013
B56: Western Title | C56: 2 | D56: 1264000 | E56: 0.001540832049 | F56: 0.002224641969
A58: EVERGREEN MONEYSOURCE MORTGAGE COMPANY | C58: 24 | D58: 6894750 | E58: 0.01848998459 | F58: 0.01213477074
B59: First American Title | C59: 1 | D59: 302500 | E59: 0.0007704160247 | F59: 0.0005324004711
B60: First Centennial Title | C60: 1 | D60: 359800 | E60: 0.0007704160247 | F60: 0.0006332485604
B61: Ticor Title | C61: 4 | D61: 844300 | E61: 0.003081664099 | F61: 0.001485969315
B62: Western Title | C62: 17 | D62: 5028150 | E62: 0.01309707242 | F62: 0.008849551831
B63: Stewart Title | C63: 1 | D63: 360000 | E63: 0.0007704160247 | F63: 0.0006336005607
A65: FAIRWAY INDEPENDENT MORTGAGE CORPORATION | C65: 9 | D65: 2512900 | E65: 0.006933744222 | F65: 0.004422707914
B66: First American Title | C66: 1 | D66: 266000 | E66: 0.0007704160247 | F66: 0.0004681604143
B67: First Centennial Title | C67: 2 | D67: 668000 | E67: 0.001540832049 | F67: 0.00117568104
B68: Ticor Title | C68: 4 | D68: 1078900 | E68: 0.003081664099 | F68: 0.00189886568
B69: Western Title | C69: 2 | D69: 500000 | E69: 0.001540832049 | F69: 0.0008800007787
A71: FINANCE OF AMERICA MORTGAGE LLC | C71: 23 | D71: 6342500 | E71: 0.01771956857 | F71: 0.01116280988
B72: First American Title | C72: 2 | D72: 558500 | E72: 0.001540832049 | F72: 0.0009829608699
B73: First Centennial Title | C73: 9 | D73: 2415400 | E73: 0.006933744222 | F73: 0.004251107762
B74: Ticor Title | C74: 7 | D74: 2360600 | E74: 0.005392912173 | F74: 0.004154659677
B75: Western Title | C75: 2 | D75: 422200 | E75: 0.001540832049 | F75: 0.0007430726576
B76: Stewart Title | C76: 3 | D76: 585800 | E76: 0.002311248074 | F76: 0.001031008912
A78: FLAGSTAR BANK FSB | C78: 7 | D78: 2361024 | E78: 0.005392912173 | F78: 0.004155405917
B79: First American Title | C79: 2 | D79: 678000 | E79: 0.001540832049 | F79: 0.001193281056
B80: First Centennial Title | C80: 2 | D80: 550500 | E80: 0.001540832049 | F80: 0.0009688808574
B81: Western Title | C81: 3 | D81: 1132524 | E81: 0.002311248074 | F81: 0.001993244004
A83: GREAT BASIN FEDERAL CREDIT UNION | C83: 5 | D83: 1570033.15 | E83: 0.003852080123 | F83: 0.002763260789
B84: First American Title | C84: 1 | D84: 246800 | E84: 0.0007704160247 | F84: 0.0004343683844
B85: First Centennial Title | C85: 1 | D85: 745033.15 | E85: 0.0007704160247 | F85: 0.001311259504
B86: Western Title | C86: 2 | D86: 548200 | E86: 0.001540832049 | F86: 0.0009648328538
B87: Stewart Title | C87: 1 | D87: 30000 | E87: 0.0007704160247 | F87: 5.280004672e-05
A89: GREATER NEVADA CREDIT UNION | C89: 3 | D89: 252000 | E89: 0.002311248074 | F89: 0.0004435203925
B90: Ticor Title | C90: 2 | D90: 220000 | E90: 0.001540832049 | F90: 0.0003872003426
B91: Stewart Title | C91: 1 | D91: 32000 | E91: 0.0007704160247 | F91: 5.632004984e-05
A93: GREATER NEVADA MORTGAGE | C93: 44 | D93: 12071113 | E93: 0.03389830508 | F93: 0.02124517768
B94: Acme Title and Escrow | C94: 1 | D94: 442113 | E94: 0.0007704160247 | F94: 0.0007781195686
B95: First American Title | C95: 4 | D95: 1238900 | E95: 0.003081664099 | F95: 0.00218046593
B96: First Centennial Title | C96: 9 | D96: 2548300 | E96: 0.006933744222 | F96: 0.004485011969
B97: Ticor Title | C97: 14 | D97: 3848100 | E97: 0.01078582435 | F97: 0.006772661993
B98: Western Title | C98: 10 | D98: 2266400 | E98: 0.007704160247 | F98: 0.00398886753
B99: Stewart Title | C99: 6 | D99: 1727300 | E99: 0.004622496148 | F99: 0.00304005069
A101: GUARANTEED RATE INC | C101: 2 | D101: 582000 | E101: 0.001540832049 | F101: 0.001024320906
B102: First American Title | C102: 1 | D102: 300000 | E102: 0.0007704160247 | F102: 0.0005280004672
B103: Ticor Title | C103: 1 | D103: 282000 | E103: 0.0007704160247 | F103: 0.0004963204392
A105: GUILD MORTGAGE COMPANY | C105: 209 | D105: 56541763 | E105: 0.1610169492 | F105: 0.09951359094
B106: Acme Title and Escrow | C106: 10 | D106: 2770405 | E106: 0.007704160247 | F106: 0.004875917115
B107: First American Title | C107: 53 | D107: 15010425 | E107: 0.04083204931 | F107: 0.02641837138
B108: First Centennial Title | C108: 30 | D108: 8326059 | E108: 0.02311248074 | F108: 0.01465387681
B109: Ticor Title | C109: 55 | D109: 14184423 | E109: 0.04237288136 | F109: 0.02496460657
B110: Toiyabe Title | C110: 3 | D110: 884000 | E110: 0.002311248074 | F110: 0.001555841377
B111: Western Title | C111: 29 | D111: 7490124 | E111: 0.02234206471 | F111: 0.01318262991
B112: Stewart Title | C112: 24 | D112: 6263064 | E112: 0.01848998459 | F112: 0.01102300239
B113: Signature Title Company | C113: 3 | D113: 924650 | E113: 0.002311248074 | F113: 0.00162738544
B114: True Title and Escrow | C114: 2 | D114: 688613 | E114: 0.001540832049 | F114: 0.001211959953
A116: HERITAGE BANK OF NEVADA | C116: 4 | D116: 1444400 | E116: 0.003081664099 | F116: 0.00254214625
B117: First Centennial Title | C117: 3 | D117: 934400 | E117: 0.002311248074 | F117: 0.001644545455
B118: Western Title | C118: 1 | D118: 510000 | E118: 0.0007704160247 | F118: 0.0008976007943
A120: HOLLIDAY FENOGLIO FOWLER LP | C120: 1 | D120: 12000000 | E120: 0.0007704160247 | F120: 0.02112001869
B121: First American Title | C121: 1 | D121: 12000000 | E121: 0.0007704160247 | F121: 0.02112001869
A123: HOMEBRIDGE FINANCIAL SERVICES INC | C123: 1 | D123: 198385 | E123: 0.0007704160247 | F123: 0.000349157909
B124: First Centennial Title | C124: 1 | D124: 198385 | E124: 0.0007704160247 | F124: 0.000349157909
A126: HOMEOWNERS FINANCIAL GROUP USA LLC | C126: 5 | D126: 1204700 | E126: 0.003852080123 | F126: 0.002120273876
B127: Stewart Title | C127: 5 | D127: 1204700 | E127: 0.003852080123 | F127: 0.002120273876
A129: ISERVE RESIDENTIAL LENDING LLC | C129: 20 | D129: 5653499 | E129: 0.01540832049 | F129: 0.009950167045
B130: First Centennial Title | C130: 12 | D130: 3586596 | E130: 0.009244992296 | F130: 0.006312414546
B131: Stewart Title | C131: 8 | D131: 2066903 | E131: 0.006163328197 | F131: 0.003637752499
A133: JPMORGAN CHASE BANK NA | C133: 1 | D133: 1370500 | E133: 0.0007704160247 | F133: 0.002412082135
B134: First Centennial Title | C134: 1 | D134: 1370500 | E134: 0.0007704160247 | F134: 0.002412082135
A136: LOANDEPOT.COM LLC | C136: 9 | D136: 2356480 | E136: 0.006933744222 | F136: 0.00414740847
B137: First American Title | C137: 5 | D137: 1317280 | E137: 0.003852080123 | F137: 0.002318414852
B138: First Centennial Title | C138: 2 | D138: 420200 | E138: 0.001540832049 | F138: 0.0007395526545
B139: Western Title | C139: 2 | D139: 619000 | E139: 0.001540832049 | F139: 0.001089440964
A141: MANN MORTGAGE LLC | C141: 3 | D141: 836275 | E141: 0.002311248074 | F141: 0.001471845302
B142: First Centennial Title | C142: 1 | D142: 355000 | E142: 0.0007704160247 | F142: 0.0006248005529
B143: Signature Title Company | C143: 2 | D143: 481275 | E143: 0.001540832049 | F143: 0.0008470447496
A145: MASON MCDUFFIE MORTGAGE CORPORATION | C145: 13 | D145: 3818509 | E145: 0.01001540832 | F145: 0.006720581787
B146: First American Title | C146: 3 | D146: 1111885 | E146: 0.002311248074 | F146: 0.001956919332
B147: First Centennial Title | C147: 4 | D147: 1093914 | E147: 0.003081664099 | F147: 0.001925290344
B148: Ticor Title | C148: 2 | D148: 381000 | E148: 0.001540832049 | F148: 0.0006705605934
B149: Western Title | C149: 4 | D149: 1231710 | E149: 0.003081664099 | F149: 0.002167811518
A151: MORGAN STANLEY PRIVATE BANK NATIONAL ASSOCIATION | C151: 1 | D151: 4999999 | E151: 0.0007704160247 | F151: 0.008800006027
B152: Ticor Title | C152: 1 | D152: 4999999 | E152: 0.0007704160247 | F152: 0.008800006027
A154: MOUNTAIN AMERICA FEDERAL CREDIT UNION | C154: 15 | D154: 4891750 | E154: 0.01155624037 | F154: 0.008609487619
B155: First American Title | C155: 2 | D155: 625000 | E155: 0.001540832049 | F155: 0.001100000973
B156: First Centennial Title | C156: 13 | D156: 4266750 | E156: 0.01001540832 | F156: 0.007509486645
A158: NEVADA STATE BANK | C158: 8 | D158: 3676870 | E158: 0.006163328197 | F158: 0.006471296927
B159: First American Title | C159: 1 | D159: 1700000 | E159: 0.0007704160247 | F159: 0.002992002648
B160: First Centennial Title | C160: 3 | D160: 653455 | E160: 0.002311248074 | F160: 0.001150081818
B161: Ticor Title | C161: 2 | D161: 758415 | E161: 0.001540832049 | F161: 0.001334811581
B162: Stewart Title | C162: 2 | D162: 565000 | E162: 0.001540832049 | F162: 0.00099440088
A164: NEVADA STATE DEVELOPMENT CORPORATION | C164: 1 | D164: 298000 | E164: 0.0007704160247 | F164: 0.0005244804641
B165: First Centennial Title | C165: 1 | D165: 298000 | E165: 0.0007704160247 | F165: 0.0005244804641
A167: NEW AMERICAN FUNDING | C167: 53 | D167: 14315816 | E167: 0.04083204931 | F167: 0.02519585846
B168: Acme Title and Escrow | C168: 4 | D168: 1085338 | E168: 0.003081664099 | F168: 0.00191019657
B169: First American Title | C169: 20 | D169: 5099388 | E169: 0.01540832049 | F169: 0.008974930822
B170: First Centennial Title | C170: 7 | D170: 1559275 | E170: 0.005392912173 | F170: 0.002744326429
B171: Ticor Title | C171: 2 | D171: 834556 | E171: 0.001540832049 | F171: 0.00146881986
B172: Toiyabe Title | C172: 9 | D172: 2745675 | E172: 0.006933744222 | F172: 0.004832392276
B173: Western Title | C173: 4 | D173: 1146400 | E173: 0.003081664099 | F173: 0.002017665785
B174: Stewart Title | C174: 7 | D174: 1845184 | E174: 0.005392912173 | F174: 0.003247526714
A176: ON Q FINANCIAL INC | C176: 28 | D176: 8586150 | E176: 0.02157164869 | F176: 0.01511163737
B177: Acme Title and Escrow | C177: 5 | D177: 1496500 | E177: 0.003852080123 | F177: 0.002633842331
B178: First Centennial Title | C178: 18 | D178: 5510250 | E178: 0.01386748844 | F178: 0.009698048582
B179: Western Title | C179: 5 | D179: 1579400 | E179: 0.003852080123 | F179: 0.00277974646
A181: ONE NEVADA CREDIT UNION | C181: 10 | D181: 3188848 | E181: 0.007704160247 | F181: 0.005612377447
B182: First Centennial Title | C182: 10 | D182: 3188848 | E182: 0.007704160247 | F182: 0.005612377447
A184: ONETRUST HOME LOANS | C184: 33 | D184: 10338250 | E184: 0.02542372881 | F184: 0.0181953361
B185: Acme Title and Escrow | C185: 10 | D185: 3283850 | E185: 0.007704160247 | F185: 0.005779581115
B186: First Centennial Title | C186: 7 | D186: 1951800 | E186: 0.005392912173 | F186: 0.00343517104
B187: Ticor Title | C187: 2 | D187: 580000 | E187: 0.001540832049 | F187: 0.001020800903
B188: Western Title | C188: 7 | D188: 2499900 | E188: 0.005392912173 | F188: 0.004399827894
B189: Stewart Title | C189: 3 | D189: 691000 | E189: 0.002311248074 | F189: 0.001216161076
B190: Signature Title Company | C190: 3 | D190: 1054000 | E190: 0.002311248074 | F190: 0.001855041642
B191: True Title and Escrow | C191: 1 | D191: 277700 | E191: 0.0007704160247 | F191: 0.0004887524325
A193: PARAMOUNT RESIDENTIAL MORTGAGE GROUP INC | C193: 5 | D193: 1279739 | E193: 0.003852080123 | F193: 0.002252342633
B194: Acme Title and Escrow | C194: 3 | D194: 876139 | E194: 0.002311248074 | F194: 0.001542006005
B195: First Centennial Title | C195: 1 | D195: 274500 | E195: 0.0007704160247 | F195: 0.0004831204275
B196: Western Title | C196: 1 | D196: 129100 | E196: 0.0007704160247 | F196: 0.0002272162011
A198: PLUMAS BANK | C198: 2 | D198: 2650000 | E198: 0.001540832049 | F198: 0.004664004127
B199: Ticor Title | C199: 1 | D199: 250000 | E199: 0.0007704160247 | F199: 0.0004400003894
B200: Western Title | C200: 1 | D200: 2400000 | E200: 0.0007704160247 | F200: 0.004224003738
A202: PRIMELENDING | C202: 48 | D202: 12785303 | E202: 0.03697996918 | F202: 0.02250215319
B203: Acme Title and Escrow | C203: 4 | D203: 1424000 | E203: 0.003081664099 | F203: 0.002506242218
B204: First American Title | C204: 1 | D204: 271000 | E204: 0.0007704160247 | F204: 0.0004769604221
B205: First Centennial Title | C205: 11 | D205: 2679800 | E205: 0.008474576271 | F205: 0.004716452174
B206: Ticor Title | C206: 5 | D206: 1134125 | E206: 0.003852080123 | F206: 0.001996061766
B207: Western Title | C207: 9 | D207: 2763555 | E207: 0.006933744222 | F207: 0.004863861104
B208: Stewart Title | C208: 18 | D208: 4512823 | E208: 0.01386748844 | F208: 0.007942575509
A210: PROVIDENT FUNDING ASSOCIATES LP | C210: 10 | D210: 2718500 | E210: 0.007704160247 | F210: 0.004784564234
B211: Western Title | C211: 10 | D211: 2718500 | E211: 0.007704160247 | F211: 0.004784564234
A213: SIERRA PACIFIC MORTGAGE COMPANY INC | C213: 7 | D213: 2027500 | E213: 0.005392912173 | F213: 0.003568403158
B214: First American Title | C214: 1 | D214: 273500 | E214: 0.0007704160247 | F214: 0.000481360426
B215: First Centennial Title | C215: 3 | D215: 823000 | E215: 0.002311248074 | F215: 0.001448481282
B216: Ticor Title | C216: 1 | D216: 302000 | E216: 0.0007704160247 | F216: 0.0005315204704
B217: Western Title | C217: 2 | D217: 629000 | E217: 0.001540832049 | F217: 0.00110704098
A219: SUMMIT FUNDING INC | C219: 36 | D219: 10369050 | E219: 0.02773497689 | F219: 0.01824954415
B220: First American Title | C220: 9 | D220: 2389400 | E220: 0.006933744222 | F220: 0.004205347721
B221: First Centennial Title | C221: 10 | D221: 2781650 | E221: 0.007704160247 | F221: 0.004895708332
B222: Ticor Title | C222: 2 | D222: 398000 | E222: 0.001540832049 | F222: 0.0007004806199
B223: Western Title | C223: 7 | D223: 2326000 | E223: 0.005392912173 | F223: 0.004093763623
B224: Stewart Title | C224: 8 | D224: 2474000 | E224: 0.006163328197 | F224: 0.004354243853
A226: SYNERGY HOME MORTGAGE LLC | C226: 46 | D226: 13444781 | E226: 0.03543913713 | F226: 0.0236628355
B227: First American Title | C227: 1 | D227: 485500 | E227: 0.0007704160247 | F227: 0.0008544807562
B228: First Centennial Title | C228: 44 | D228: 12599281 | E228: 0.03389830508 | F228: 0.02217475418
B229: Western Title | C229: 1 | D229: 360000 | E229: 0.0007704160247 | F229: 0.0006336005607
A231: UMPQUA BANK | C231: 13 | D231: 3831250 | E231: 0.01001540832 | F231: 0.006743005967
B232: First Centennial Title | C232: 4 | D232: 1314000 | E232: 0.003081664099 | F232: 0.002312642047
B233: Ticor Title | C233: 6 | D233: 1570500 | E233: 0.004622496148 | F233: 0.002764082446
B234: Western Title | C234: 1 | D234: 312000 | E234: 0.0007704160247 | F234: 0.0005491204859
B235: Stewart Title | C235: 2 | D235: 634750 | E235: 0.001540832049 | F235: 0.001117160989
A237: UNITED FEDERAL CREDIT UNION | C237: 47 | D237: 15251215 | E237: 0.03620955316 | F237: 0.02684216215
B238: First American Title | C238: 3 | D238: 1326800 | E238: 0.002311248074 | F238: 0.002335170066
B239: First Centennial Title | C239: 32 | D239: 10589940 | E239: 0.02465331279 | F239: 0.01863831089
B240: Ticor Title | C240: 1 | D240: 359400 | E240: 0.0007704160247 | F240: 0.0006325445598
B241: Western Title | C241: 2 | D241: 486500 | E241: 0.001540832049 | F241: 0.0008562407577
B242: Stewart Title | C242: 9 | D242: 2488575 | E242: 0.006933744222 | F242: 0.004379895876
A244: UNITED WHOLESALE MORTGAGE | C244: 46 | D244: 13272662 | E244: 0.03543913713 | F244: 0.02335990579
B245: First American Title | C245: 9 | D245: 2762100 | E245: 0.006933744222 | F245: 0.004861300302
... 263 more rows

Sheet BUILDER TRACKING
A1: BUILDER TRACKING
A2: ='OVERALL STATS'!A2 -> Reporting Period: SEPTEMBER, 2020
A4: BUILDER | B4: CLOSINGS | C4: DOLLARVOL | D4: AVERAGE | E4: % OF CLOSINGS | F4: % OF $$$ VOLUME
A5: DR HORTON INC | B5: 69 | C5: 27824955 | D5: 403260.2174 | E5: =Table2[[#This Row],[CLOSINGS]]/$B$34 -> 0.3150684932 | F5: =Table2[[#This Row],[DOLLARVOL]]/$C$34 -> 0.2508038649
A6: LENNAR RENO LLC | B6: 41 | C6: 18700902 | D6: 456119.561 | E6: =Table2[[#This Row],[CLOSINGS]]/$B$34 -> 0.1872146119 | F6: =Table2[[#This Row],[DOLLARVOL]]/$C$34 -> 0.1685630219
A7: TOLL NV LIMITED PARTNERSHIP | B7: 35 | C7: 24547492 | D7: 701356.9143 | E7: =Table2[[#This Row],[CLOSINGS]]/$B$34 -> 0.1598173516 | F7: =Table2[[#This Row],[DOLLARVOL]]/$C$34 -> 0.2212620242
A8: TOLL SOUTH RENO LLC | B8: 6 | C8: 6635737 | D8: 1105956.167 | E8: =Table2[[#This Row],[CLOSINGS]]/$B$34 -> 0.02739726027 | F8: =Table2[[#This Row],[DOLLARVOL]]/$C$34 -> 0.05981208185
A9: REGENCY PARK HOMES INC | B9: 6 | C9: 2047743 | D9: 341290.5 | E9: =Table2[[#This Row],[CLOSINGS]]/$B$34 -> 0.02739726027 | F9: =Table2[[#This Row],[DOLLARVOL]]/$C$34 -> 0.01845759889
A10: RANCHO HILLS BY DESERT WIND LP | B10: 6 | C10: 1954766 | D10: 325794.3333 | E10: =Table2[[#This Row],[CLOSINGS]]/$B$34 -> 0.02739726027 | F10: =Table2[[#This Row],[DOLLARVOL]]/$C$34 -> 0.01761953857
A11: JC NV FLATS LLC | B11: 6 | C11: 1840138 | D11: 306689.6667 | E11: =Table2[[#This Row],[CLOSINGS]]/$B$34 -> 0.02739726027 | F11: =Table2[[#This Row],[DOLLARVOL]]/$C$34 -> 0.01658632412
A12: TL WHISPERING CANYON LP | B12: 5 | C12: 4784779 | D12: 956955.8 | E12: =Table2[[#This Row],[CLOSINGS]]/$B$34 -> 0.02283105023 | F12: =Table2[[#This Row],[DOLLARVOL]]/$C$34 -> 0.04312823024
A13: JC BLACKSTONE LLC | B13: 5 | C13: 2490649 | D13: 498129.8 | E13: =Table2[[#This Row],[CLOSINGS]]/$B$34 -> 0.02283105023 | F13: =Table2[[#This Row],[DOLLARVOL]]/$C$34 -> 0.02244978995
A14: SILVERADO EAGLE CANYON LLC | B14: 5 | C14: 2243648 | D14: 448729.6 | E14: =Table2[[#This Row],[CLOSINGS]]/$B$34 -> 0.02283105023 | F14: =Table2[[#This Row],[DOLLARVOL]]/$C$34 -> 0.02022341419
A15: QUEST RENO LLC | B15: 4 | C15: 2247898 | D15: 561974.5 | E15: =Table2[[#This Row],[CLOSINGS]]/$B$34 -> 0.01826484018 | F15: =Table2[[#This Row],[DOLLARVOL]]/$C$34 -> 0.02026172212
A16: NORTHERN NEVADA HOMES LLC | B16: 4 | C16: 1379597 | D16: 344899.25 | E16: =Table2[[#This Row],[CLOSINGS]]/$B$34 -> 0.01826484018 | F16: =Table2[[#This Row],[DOLLARVOL]]/$C$34 -> 0.01243517769
A17: TERRENO DEVELOPMENT LLC | B17: 3 | C17: 1540777 | D17: 513592.3333 | E17: =Table2[[#This Row],[CLOSINGS]]/$B$34 -> 0.01369863014 | F17: =Table2[[#This Row],[DOLLARVOL]]/$C$34 -> 0.01388799466
A18: NEVADA FINISH LLC | B18: 3 | C18: 1113631 | D18: 371210.3333 | E18: =Table2[[#This Row],[CLOSINGS]]/$B$34 -> 0.01369863014 | F18: =Table2[[#This Row],[DOLLARVOL]]/$C$34 -> 0.01003785842
A19: PARADISO COMMUNITIES LLC | B19: 3 | C19: 1050330 | D19: 350110 | E19: =Table2[[#This Row],[CLOSINGS]]/$B$34 -> 0.01369863014 | F19: =Table2[[#This Row],[DOLLARVOL]]/$C$34 -> 0.009467286592
A20: TOLL NORTH RENO LLC | B20: 2 | C20: 1770676 | D20: 885338 | E20: =Table2[[#This Row],[CLOSINGS]]/$B$34 -> 0.009132420091 | F20: =Table2[[#This Row],[DOLLARVOL]]/$C$34 -> 0.01596021931
A21: WEDGE MEADOWS HOMES LLC | B21: 2 | C21: 1443217 | D21: 721608.5 | E21: =Table2[[#This Row],[CLOSINGS]]/$B$34 -> 0.009132420091 | F21: =Table2[[#This Row],[DOLLARVOL]]/$C$34 -> 0.01300862486
A22: TOWN CENTER TH LLC | B22: 2 | C22: 1171885 | D22: 585942.5 | E22: =Table2[[#This Row],[CLOSINGS]]/$B$34 -> 0.009132420091 | F22: =Table2[[#This Row],[DOLLARVOL]]/$C$34 -> 0.01056293846
A23: WVN PHASE 21 LLC | B23: 2 | C23: 762560 | D23: 381280 | E23: =Table2[[#This Row],[CLOSINGS]]/$B$34 -> 0.009132420091 | F23: =Table2[[#This Row],[DOLLARVOL]]/$C$34 -> 0.006873434124
A24: PINE BLUFF PROPERTIES LLC | B24: 1 | C24: 959827 | D24: 959827 | E24: =Table2[[#This Row],[CLOSINGS]]/$B$34 -> 0.004566210046 | F24: =Table2[[#This Row],[DOLLARVOL]]/$C$34 -> 0.008651525985
A25: SUNSET JENUANE 2016 LLC | B25: 1 | C25: 693500 | D25: 693500 | E25: =Table2[[#This Row],[CLOSINGS]]/$B$34 -> 0.004566210046 | F25: =Table2[[#This Row],[DOLLARVOL]]/$C$34 -> 0.006250952797
A26: ARTISAN MYSTIC MOUNTAIN LLC | B26: 1 | C26: 686751 | D26: 686751 | E26: =Table2[[#This Row],[CLOSINGS]]/$B$34 -> 0.004566210046 | F26: =Table2[[#This Row],[DOLLARVOL]]/$C$34 -> 0.006190119804
A27: SILVERADO SKY RIDGE LLC | B27: 1 | C27: 575000 | D27: 575000 | E27: =Table2[[#This Row],[CLOSINGS]]/$B$34 -> 0.004566210046 | F27: =Table2[[#This Row],[DOLLARVOL]]/$C$34 -> 0.005182837575
A28: SILVER MEADOWS HOMES LLC | B28: 1 | C28: 493753 | D28: 493753 | E28: =Table2[[#This Row],[CLOSINGS]]/$B$34 -> 0.004566210046 | F28: =Table2[[#This Row],[DOLLARVOL]]/$C$34 -> 0.004450507133
A29: WEST COAST HOME BUILDERS INC | B29: 1 | C29: 488000 | D29: 488000 | E29: =Table2[[#This Row],[CLOSINGS]]/$B$34 -> 0.004566210046 | F29: =Table2[[#This Row],[DOLLARVOL]]/$C$34 -> 0.004398651716
A30: WOODLAND VILLAGE PHASE 22 LLC | B30: 1 | C30: 408717 | D30: 408717 | E30: =Table2[[#This Row],[CLOSINGS]]/$B$34 -> 0.004566210046 | F30: =Table2[[#This Row],[DOLLARVOL]]/$C$34 -> 0.003684024044
A31: EAGLE CANYON SOUTH LLC | B31: 1 | C31: 404947 | D31: 404947 | E31: =Table2[[#This Row],[CLOSINGS]]/$B$34 -> 0.004566210046 | F31: =Table2[[#This Row],[DOLLARVOL]]/$C$34 -> 0.003650042657
A32: PARADISCO COMMUNITIES LLC | B32: 1 | C32: 343217 | D32: 343217 | E32: =Table2[[#This Row],[CLOSINGS]]/$B$34 -> 0.004566210046 | F32: =Table2[[#This Row],[DOLLARVOL]]/$C$34 -> 0.003093631242
A33: DR HORTON INC; HORTON DR INC | B33: 1 | C33: 337995 | D33: 337995 | E33: =Table2[[#This Row],[CLOSINGS]]/$B$34 -> 0.004566210046 | F33: =Table2[[#This Row],[DOLLARVOL]]/$C$34 -> 0.003046562063
A34: GRAND TOTAL | B34: =SUM(B5:B33) -> 219 | C34: =SUM(C5:C33) -> 110943087 | E34: =SUM(E5:E33) -> 1 | F34: =SUM(F5:F33) -> 1

Sheet SALES_LIST (hidden)
A1: FULLNAME | B1: RECBY | C1: BRANCH | D1: EO | E1: PROPTYPE | F1: DOCNUM | G1: AMOUNT | H1: SUB | I1: INSURED | J1: RECDATE | K1: Last Row: | L1: 650
A2: Acme Title and Escrow | B2: ACT | C2: LANDER | D2: LTE | E2: CONDO/TWNHSE | F2: 5073000 | G2: 268500 | H2: NO | I2: YES | J2: 44077
A3: Acme Title and Escrow | B3: ACT | C3: LANDER | D3: YC | E3: 2-4 PLEX | F3: 5084488 | G3: 415000 | H3: NO | I3: YES | J3: 44104
A4: Acme Title and Escrow | B4: ACT | C4: LANDER | D4: LTE | E4: SINGLE FAM RES. | F4: 5073526 | G4: 577000 | H4: NO | I4: YES | J4: 44078
A5: Acme Title and Escrow | B5: ACT | C5: LANDER | D5: LTE | E5: SINGLE FAM RES. | F5: 5077159 | G5: 575000 | H5: NO | I5: YES | J5: 44089
A6: Acme Title and Escrow | B6: ACT | C6: LANDER | D6: YC | E6: SINGLE FAM RES. | F6: 5073376 | G6: 400000 | H6: NO | I6: YES | J6: 44078
A7: Acme Title and Escrow | B7: ACT | C7: LANDER | D7: LTE | E7: SINGLE FAM RES. | F7: 5075630 | G7: 250000 | H7: NO | I7: YES | J7: 44084
A8: Acme Title and Escrow | B8: ACT | C8: LANDER | D8: RA | E8: SINGLE FAM RES. | F8: 5073146 | G8: 335000 | H8: NO | I8: YES | J8: 44077
A9: Acme Title and Escrow | B9: ACT | C9: LANDER | D9: YC | E9: SINGLE FAM RES. | F9: 5073069 | G9: 342000 | H9: NO | I9: YES | J9: 44077
A10: Acme Title and Escrow | B10: ACT | C10: LANDER | D10: LTE | E10: SINGLE FAM RES. | F10: 5084220 | G10: 550000 | H10: NO | I10: YES | J10: 44103
A11: Acme Title and Escrow | B11: ACT | C11: LANDER | D11: LTE | E11: SINGLE FAM RES. | F11: 5081058 | G11: 375000 | H11: NO | I11: YES | J11: 44098
A12: Acme Title and Escrow | B12: ACT | C12: LANDER | D12: LTE | E12: SINGLE FAM RES. | F12: 5079548 | G12: 900000 | H12: NO | I12: YES | J12: 44095
A13: Acme Title and Escrow | B13: ACT | C13: LANDER | D13: YC | E13: SINGLE FAM RES. | F13: 5080207 | G13: 225000 | H13: NO | I13: YES | J13: 44097
A14: Acme Title and Escrow | B14: ACT | C14: LANDER | D14: LTE | E14: SINGLE FAM RES. | F14: 5076753 | G14: 390000 | H14: NO | I14: YES | J14: 44088
A15: Acme Title and Escrow | B15: ACT | C15: LANDER | D15: YC | E15: SINGLE FAM RES. | F15: 5081981 | G15: 336000 | H15: NO | I15: YES | J15: 44099
A16: Acme Title and Escrow | B16: ACT | C16: LANDER | D16: YC | E16: SINGLE FAM RES. | F16: 5079777 | G16: 295000 | H16: NO | I16: YES | J16: 44096
A17: Acme Title and Escrow | B17: ACT | C17: LANDER | D17: YC | E17: MOBILE HOME | F17: 5082421 | G17: 242000 | H17: NO | I17: YES | J17: 44099
A18: Acme Title and Escrow | B18: ACT | C18: LANDER | D18: LTE | E18: VACANT LAND | F18: 5084026 | G18: 140000 | H18: NO | I18: YES | J18: 44103
A19: Acme Title and Escrow | B19: ACT | C19: LANDER | D19: YC | E19: SINGLE FAM RES. | F19: 5075075 | G19: 360000 | H19: NO | I19: YES | J19: 44083
A20: Acme Title and Escrow | B20: ACT | C20: LANDER | D20: RA | E20: SINGLE FAM RES. | F20: 5075009 | G20: 495000 | H20: NO | I20: YES | J20: 44083
A21: Acme Title and Escrow | B21: ACT | C21: LANDER | D21: LTE | E21: SINGLE FAM RES. | F21: 5074213 | G21: 272500 | H21: NO | I21: YES | J21: 44082
A22: Acme Title and Escrow | B22: ACT | C22: LANDER | D22: LTE | E22: SINGLE FAM RES. | F22: 5083662 | G22: 375000 | H22: NO | I22: YES | J22: 44102
A23: Acme Title and Escrow | B23: ACT | C23: LANDER | D23: LTE | E23: SINGLE FAM RES. | F23: 5076194 | G23: 250000 | H23: NO | I23: YES | J23: 44085
A24: Acme Title and Escrow | B24: ACT | C24: LANDER | D24: YC | E24: SINGLE FAM RES. | F24: 5074380 | G24: 334900 | H24: NO | I24: YES | J24: 44082
A25: Calatlantic Title West | B25: CAL | C25: MCCARRAN | D25: LH | E25: SINGLE FAM RES. | F25: 5084927 | G25: 405186 | H25: YES | I25: YES | J25: 44104
A26: Calatlantic Title West | B26: CAL | C26: MCCARRAN | D26: LH | E26: SINGLE FAM RES. | F26: 5080408 | G26: 499950 | H26: YES | I26: YES | J26: 44097
A27: Calatlantic Title West | B27: CAL | C27: MCCARRAN | D27: LH | E27: SINGLE FAM RES. | F27: 5081064 | G27: 518878 | H27: YES | I27: YES | J27: 44098
A28: Calatlantic Title West | B28: CAL | C28: MCCARRAN | D28: LH | E28: SINGLE FAM RES. | F28: 5083439 | G28: 433430 | H28: YES | I28: YES | J28: 44102
A29: Calatlantic Title West | B29: CAL | C29: MCCARRAN | D29: LH | E29: SINGLE FAM RES. | F29: 5073005 | G29: 624299 | H29: YES | I29: YES | J29: 44077
A30: Calatlantic Title West | B30: CAL | C30: MCCARRAN | D30: LH | E30: SINGLE FAM RES. | F30: 5074367 | G30: 719950 | H30: YES | I30: YES | J30: 44082
A31: Calatlantic Title West | B31: CAL | C31: MCCARRAN | D31: LH | E31: SINGLE FAM RES. | F31: 5077732 | G31: 425613 | H31: YES | I31: YES | J31: 44090
A32: Calatlantic Title West | B32: CAL | C32: MCCARRAN | D32: LH | E32: SINGLE FAM RES. | F32: 5072960 | G32: 429950 | H32: YES | I32: YES | J32: 44077
A33: Calatlantic Title West | B33: CAL | C33: MCCARRAN | D33: LH | E33: SINGLE FAM RES. | F33: 5083560 | G33: 464730 | H33: YES | I33: YES | J33: 44102
A34: Calatlantic Title West | B34: CAL | C34: MCCARRAN | D34: LH | E34: SINGLE FAM RES. | F34: 5076065 | G34: 508950 | H34: YES | I34: YES | J34: 44085
A35: Calatlantic Title West | B35: CAL | C35: MCCARRAN | D35: LH | E35: SINGLE FAM RES. | F35: 5084258 | G35: 384208 | H35: YES | I35: YES | J35: 44103
A36: Calatlantic Title West | B36: CAL | C36: MCCARRAN | D36: LH | E36: SINGLE FAM RES. | F36: 5074874 | G36: 450267 | H36: YES | I36: YES | J36: 44083
A37: Calatlantic Title West | B37: CAL | C37: MCCARRAN | D37: LH | E37: SINGLE FAM RES. | F37: 5080820 | G37: 475973 | H37: YES | I37: YES | J37: 44098
A38: Calatlantic Title West | B38: CAL | C38: MCCARRAN | D38: LH | E38: SINGLE FAM RES. | F38: 5078121 | G38: 464074 | H38: YES | I38: YES | J38: 44091
A39: Calatlantic Title West | B39: CAL | C39: MCCARRAN | D39: LH | E39: SINGLE FAM RES. | F39: 5084160 | G39: 408777 | H39: YES | I39: YES | J39: 44103
A40: Calatlantic Title West | B40: CAL | C40: MCCARRAN | D40: LH | E40: SINGLE FAM RES. | F40: 5080585 | G40: 324950 | H40: YES | I40: YES | J40: 44097
A41: Calatlantic Title West | B41: CAL | C41: MCCARRAN | D41: LH | E41: SINGLE FAM RES. | F41: 5084172 | G41: 385129 | H41: YES | I41: YES | J41: 44103
A42: Calatlantic Title West | B42: CAL | C42: MCCARRAN | D42: LH | E42: SINGLE FAM RES. | F42: 5084205 | G42: 354604 | H42: YES | I42: YES | J42: 44103
A43: Calatlantic Title West | B43: CAL | C43: MCCARRAN | D43: LH | E43: SINGLE FAM RES. | F43: 5078725 | G43: 419950 | H43: YES | I43: YES | J43: 44092
A44: Calatlantic Title West | B44: CAL | C44: MCCARRAN | D44: LH | E44: SINGLE FAM RES. | F44: 5078579 | G44: 394950 | H44: YES | I44: YES | J44: 44092
A45: Calatlantic Title West | B45: CAL | C45: MCCARRAN | D45: LH | E45: SINGLE FAM RES. | F45: 5076008 | G45: 416739 | H45: YES | I45: YES | J45: 44085
A46: Calatlantic Title West | B46: CAL | C46: MCCARRAN | D46: LH | E46: SINGLE FAM RES. | F46: 5073706 | G46: 701676 | H46: YES | I46: YES | J46: 44078
A47: Calatlantic Title West | B47: CAL | C47: MCCARRAN | D47: LH | E47: SINGLE FAM RES. | F47: 5073703 | G47: 464950 | H47: YES | I47: YES | J47: 44078
A48: Calatlantic Title West | B48: CAL | C48: MCCARRAN | D48: LH | E48: SINGLE FAM RES. | F48: 5078684 | G48: 466775 | H48: YES | I48: YES | J48: 44092
A49: Calatlantic Title West | B49: CAL | C49: MCCARRAN | D49: LH | E49: SINGLE FAM RES. | F49: 5079697 | G49: 429950 | H49: YES | I49: YES | J49: 44096
A50: Calatlantic Title West | B50: CAL | C50: MCCARRAN | D50: LH | E50: SINGLE FAM RES. | F50: 5075735 | G50: 419950 | H50: YES | I50: YES | J50: 44085
A51: Calatlantic Title West | B51: CAL | C51: MCCARRAN | D51: LH | E51: SINGLE FAM RES. | F51: 5082362 | G51: 435950 | H51: YES | I51: YES | J51: 44099
A52: Calatlantic Title West | B52: CAL | C52: MCCARRAN | D52: LH | E52: SINGLE FAM RES. | F52: 5081033 | G52: 401448 | H52: YES | I52: YES | J52: 44098
A53: Calatlantic Title West | B53: CAL | C53: MCCARRAN | D53: LH | E53: SINGLE FAM RES. | F53: 5081035 | G53: 411448 | H53: YES | I53: YES | J53: 44098
A54: Calatlantic Title West | B54: CAL | C54: MCCARRAN | D54: LH | E54: SINGLE FAM RES. | F54: 5084209 | G54: 406802 | H54: YES | I54: YES | J54: 44103
A55: Calatlantic Title West | B55: CAL | C55: MCCARRAN | D55: LH | E55: SINGLE FAM RES. | F55: 5072097 | G55: 497167 | H55: YES | I55: YES | J55: 44075
A56: Calatlantic Title West | B56: CAL | C56: MCCARRAN | D56: LH | E56: SINGLE FAM RES. | F56: 5077255 | G56: 422020 | H56: YES | I56: YES | J56: 44089
A57: Calatlantic Title West | B57: CAL | C57: MCCARRAN | D57: LH | E57: SINGLE FAM RES. | F57: 5077260 | G57: 389950 | H57: YES | I57: YES | J57: 44089
A58: Calatlantic Title West | B58: CAL | C58: MCCARRAN | D58: LH | E58: SINGLE FAM RES. | F58: 5082197 | G58: 458513 | H58: YES | I58: YES | J58: 44099
A59: Calatlantic Title West | B59: CAL | C59: MCCARRAN | D59: LH | E59: SINGLE FAM RES. | F59: 5079961 | G59: 465000 | H59: YES | I59: YES | J59: 44096
A60: Calatlantic Title West | B60: CAL | C60: MCCARRAN | D60: LH | E60: SINGLE FAM RES. | F60: 5085083 | G60: 412000 | H60: YES | I60: YES | J60: 44104
A61: Calatlantic Title West | B61: CAL | C61: MCCARRAN | D61: LH | E61: SINGLE FAM RES. | F61: 5082220 | G61: 345372 | H61: YES | I61: YES | J61: 44099
A62: Calatlantic Title West | B62: CAL | C62: SOUTH KIETZKE | D62: LH | E62: SINGLE FAM RES. | F62: 5079510 | G62: 397205 | H62: YES | I62: YES | J62: 44095
A63: Calatlantic Title West | B63: CAL | C63: MCCARRAN | D63: LH | E63: SINGLE FAM RES. | F63: 5072509 | G63: 521527 | H63: YES | I63: YES | J63: 44076
A64: Calatlantic Title West | B64: CAL | C64: MCCARRAN | D64: LH | E64: SINGLE FAM RES. | F64: 5079914 | G64: 682804 | H64: YES | I64: YES | J64: 44096
A65: Calatlantic Title West | B65: CAL | C65: MCCARRAN | D65: LH | E65: SINGLE FAM RES. | F65: 5079499 | G65: 459838 | H65: YES | I65: YES | J65: 44095
A66: DHI Title of Nevada | B66: DHI | C66: LONGLEY | D66: N/A | E66: SINGLE FAM RES. | F66: 5082092 | G66: 282455 | H66: YES | I66: YES | J66: 44099
A67: DHI Title of Nevada | B67: DHI | C67: LONGLEY | D67: N/A | E67: SINGLE FAM RES. | F67: 5077300 | G67: 399995 | H67: YES | I67: YES | J67: 44089
A68: DHI Title of Nevada | B68: DHI | C68: LONGLEY | D68: N/A | E68: SINGLE FAM RES. | F68: 5081054 | G68: 361000 | H68: YES | I68: YES | J68: 44098
A69: DHI Title of Nevada | B69: DHI | C69: LONGLEY | D69: N/A | E69: SINGLE FAM RES. | F69: 5084562 | G69: 337995 | H69: YES | I69: YES | J69: 44104
A70: DHI Title of Nevada | B70: DHI | C70: LONGLEY | D70: N/A | E70: SINGLE FAM RES. | F70: 5084727 | G70: 339995 | H70: YES | I70: YES | J70: 44104
A71: DHI Title of Nevada | B71: DHI | C71: LONGLEY | D71: N/A | E71: SINGLE FAM RES. | F71: 5084149 | G71: 297995 | H71: YES | I71: YES | J71: 44103
A72: DHI Title of Nevada | B72: DHI | C72: LONGLEY | D72: N/A | E72: SINGLE FAM RES. | F72: 5080427 | G72: 344995 | H72: YES | I72: YES | J72: 44097
A73: DHI Title of Nevada | B73: DHI | C73: LONGLEY | D73: N/A | E73: SINGLE FAM RES. | F73: 5081069 | G73: 485000 | H73: YES | I73: YES | J73: 44098
A74: DHI Title of Nevada | B74: DHI | C74: LONGLEY | D74: N/A | E74: SINGLE FAM RES. | F74: 5079561 | G74: 339995 | H74: YES | I74: YES | J74: 44095
A75: DHI Title of Nevada | B75: DHI | C75: LONGLEY | D75: N/A | E75: SINGLE FAM RES. | F75: 5084623 | G75: 339995 | H75: YES | I75: YES | J75: 44104
A76: DHI Title of Nevada | B76: DHI | C76: LONGLEY | D76: N/A | E76: SINGLE FAM RES. | F76: 5078208 | G76: 470801 | H76: YES | I76: YES | J76: 44091
A77: DHI Title of Nevada | B77: DHI | C77: LONGLEY | D77: N/A | E77: SINGLE FAM RES. | F77: 5084655 | G77: 347290 | H77: YES | I77: YES | J77: 44104
A78: DHI Title of Nevada | B78: DHI | C78: LONGLEY | D78: N/A | E78: SINGLE FAM RES. | F78: 5080401 | G78: 509945 | H78: YES | I78: YES | J78: 44097
A79: DHI Title of Nevada | B79: DHI | C79: LONGLEY | D79: N/A | E79: SINGLE FAM RES. | F79: 5084183 | G79: 599995 | H79: YES | I79: YES | J79: 44103
A80: DHI Title of Nevada | B80: DHI | C80: LONGLEY | D80: N/A | E80: SINGLE FAM RES. | F80: 5083627 | G80: 469995 | H80: YES | I80: YES | J80: 44102
A81: DHI Title of Nevada | B81: DHI | C81: LONGLEY | D81: N/A | E81: SINGLE FAM RES. | F81: 5082206 | G81: 611375 | H81: YES | I81: YES | J81: 44099
A82: DHI Title of Nevada | B82: DHI | C82: LONGLEY | D82: N/A | E82: SINGLE FAM RES. | F82: 5075395 | G82: 393995 | H82: YES | I82: YES | J82: 44084
A83: DHI Title of Nevada | B83: DHI | C83: LONGLEY | D83: N/A | E83: SINGLE FAM RES. | F83: 5084263 | G83: 312685 | H83: YES | I83: YES | J83: 44103
A84: DHI Title of Nevada | B84: DHI | C84: LONGLEY | D84: N/A | E84: SINGLE FAM RES. | F84: 5084276 | G84: 395995 | H84: YES | I84: YES | J84: 44103
A85: DHI Title of Nevada | B85: DHI | C85: LONGLEY | D85: N/A | E85: SINGLE FAM RES. | F85: 5078602 | G85: 377995 | H85: YES | I85: YES | J85: 44092
A86: DHI Title of Nevada | B86: DHI | C86: LONGLEY | D86: N/A | E86: SINGLE FAM RES. | F86: 5075422 | G86: 327995 | H86: YES | I86: YES | J86: 44084
A87: DHI Title of Nevada | B87: DHI | C87: LONGLEY | D87: N/A | E87: SINGLE FAM RES. | F87: 5079491 | G87: 594995 | H87: YES | I87: YES | J87: 44095
A88: DHI Title of Nevada | B88: DHI | C88: LONGLEY | D88: N/A | E88: SINGLE FAM RES. | F88: 5083636 | G88: 348995 | H88: YES | I88: YES | J88: 44102
A89: DHI Title of Nevada | B89: DHI | C89: LONGLEY | D89: N/A | E89: SINGLE FAM RES. | F89: 5081205 | G89: 339995 | H89: YES | I89: YES | J89: 44098
A90: DHI Title of Nevada | B90: DHI | C90: LONGLEY | D90: N/A | E90: SINGLE FAM RES. | F90: 5079866 | G90: 351995 | H90: YES | I90: YES | J90: 44096
A91: DHI Title of Nevada | B91: DHI | C91: LONGLEY | D91: N/A | E91: SINGLE FAM RES. | F91: 5083655 | G91: 334995 | H91: YES | I91: YES | J91: 44102
A92: DHI Title of Nevada | B92: DHI | C92: LONGLEY | D92: N/A | E92: SINGLE FAM RES. | F92: 5081534 | G92: 384995 | H92: YES | I92: YES | J92: 44099
A93: DHI Title of Nevada | B93: DHI | C93: LONGLEY | D93: N/A | E93: SINGLE FAM RES. | F93: 5080846 | G93: 358995 | H93: YES | I93: YES | J93: 44098
A94: DHI Title of Nevada | B94: DHI | C94: LONGLEY | D94: N/A | E94: SINGLE FAM RES. | F94: 5080449 | G94: 274995 | H94: YES | I94: YES | J94: 44097
A95: DHI Title of Nevada | B95: DHI | C95: LONGLEY | D95: N/A | E95: SINGLE FAM RES. | F95: 5083717 | G95: 339995 | H95: YES | I95: YES | J95: 44102
A96: DHI Title of Nevada | B96: DHI | C96: LONGLEY | D96: N/A | E96: SINGLE FAM RES. | F96: 5074133 | G96: 366995 | H96: YES | I96: YES | J96: 44082
A97: DHI Title of Nevada | B97: DHI | C97: LONGLEY | D97: N/A | E97: SINGLE FAM RES. | F97: 5075477 | G97: 369995 | H97: YES | I97: YES | J97: 44084
A98: DHI Title of Nevada | B98: DHI | C98: LONGLEY | D98: N/A | E98: SINGLE FAM RES. | F98: 5078925 | G98: 554840 | H98: YES | I98: YES | J98: 44092
A99: DHI Title of Nevada | B99: DHI | C99: LONGLEY | D99: N/A | E99: SINGLE FAM RES. | F99: 5083243 | G99: 360995 | H99: YES | I99: YES | J99: 44102
A100: DHI Title of Nevada | B100: DHI | C100: LONGLEY | D100: N/A | E100: SINGLE FAM RES. | F100: 5082037 | G100: 366995 | H100: YES | I100: YES | J100: 44099
A101: DHI Title of Nevada | B101: DHI | C101: LONGLEY | D101: N/A | E101: SINGLE FAM RES. | F101: 5073328 | G101: 581465 | H101: YES | I101: YES | J101: 44078
A102: DHI Title of Nevada | B102: DHI | C102: LONGLEY | D102: N/A | E102: SINGLE FAM RES. | F102: 5077557 | G102: 359995 | H102: YES | I102: YES | J102: 44090
A103: DHI Title of Nevada | B103: DHI | C103: LONGLEY | D103: N/A | E103: SINGLE FAM RES. | F103: 5080826 | G103: 591275 | H103: YES | I103: YES | J103: 44098
A104: DHI Title of Nevada | B104: DHI | C104: LONGLEY | D104: N/A | E104: SINGLE FAM RES. | F104: 5082414 | G104: 596465 | H104: YES | I104: YES | J104: 44099
A105: DHI Title of Nevada | B105: DHI | C105: LONGLEY | D105: N/A | E105: SINGLE FAM RES. | F105: 5078486 | G105: 591323 | H105: YES | I105: YES | J105: 44092
A106: DHI Title of Nevada | B106: DHI | C106: LONGLEY | D106: N/A | E106: SINGLE FAM RES. | F106: 5081211 | G106: 520441 | H106: YES | I106: YES | J106: 44098
A107: DHI Title of Nevada | B107: DHI | C107: LONGLEY | D107: N/A | E107: SINGLE FAM RES. | F107: 5081478 | G107: 511783 | H107: YES | I107: YES | J107: 44099
A108: DHI Title of Nevada | B108: DHI | C108: LONGLEY | D108: N/A | E108: SINGLE FAM RES. | F108: 5085000 | G108: 484666 | H108: YES | I108: YES | J108: 44104
A109: DHI Title of Nevada | B109: DHI | C109: LONGLEY | D109: N/A | E109: SINGLE FAM RES. | F109: 5076770 | G109: 322995 | H109: YES | I109: YES | J109: 44088
A110: DHI Title of Nevada | B110: DHI | C110: LONGLEY | D110: N/A | E110: SINGLE FAM RES. | F110: 5082379 | G110: 286295 | H110: YES | I110: YES | J110: 44099
A111: DHI Title of Nevada | B111: DHI | C111: LONGLEY | D111: N/A | E111: SINGLE FAM RES. | F111: 5078928 | G111: 304995 | H111: YES | I111: YES | J111: 44092
A112: DHI Title of Nevada | B112: DHI | C112: LONGLEY | D112: N/A | E112: SINGLE FAM RES. | F112: 5080817 | G112: 322995 | H112: YES | I112: YES | J112: 44098
A113: DHI Title of Nevada | B113: DHI | C113: LONGLEY | D113: N/A | E113: SINGLE FAM RES. | F113: 5084964 | G113: 337995 | H113: YES | I113: YES | J113: 44104
A114: DHI Title of Nevada | B114: DHI | C114: LONGLEY | D114: N/A | E114: SINGLE FAM RES. | F114: 5082318 | G114: 370995 | H114: YES | I114: YES | J114: 44099
A115: DHI Title of Nevada | B115: DHI | C115: LONGLEY | D115: N/A | E115: SINGLE FAM RES. | F115: 5081936 | G115: 370995 | H115: YES | I115: YES | J115: 44099
A116: DHI Title of Nevada | B116: DHI | C116: LONGLEY | D116: N/A | E116: SINGLE FAM RES. | F116: 5078461 | G116: 552591 | H116: YES | I116: YES | J116: 44092
A117: DHI Title of Nevada | B117: DHI | C117: LONGLEY | D117: N/A | E117: SINGLE FAM RES. | F117: 5076439 | G117: 394995 | H117: YES | I117: YES | J117: 44088
A118: DHI Title of Nevada | B118: DHI | C118: LONGLEY | D118: N/A | E118: SINGLE FAM RES. | F118: 5083914 | G118: 574995 | H118: YES | I118: YES | J118: 44103
A119: DHI Title of Nevada | B119: DHI | C119: LONGLEY | D119: N/A | E119: SINGLE FAM RES. | F119: 5085242 | G119: 366995 | H119: YES | I119: YES | J119: 44104
A120: DHI Title of Nevada | B120: DHI | C120: LONGLEY | D120: N/A | E120: SINGLE FAM RES. | F120: 5084723 | G120: 405995 | H120: YES | I120: YES | J120: 44104
A121: DHI Title of Nevada | B121: DHI | C121: LONGLEY | D121: N/A | E121: SINGLE FAM RES. | F121: 5083959 | G121: 375495 | H121: YES | I121: YES | J121: 44103
A122: DHI Title of Nevada | B122: DHI | C122: LONGLEY | D122: N/A | E122: SINGLE FAM RES. | F122: 5083102 | G122: 391495 | H122: YES | I122: YES | J122: 44102
A123: DHI Title of Nevada | B123: DHI | C123: LONGLEY | D123: N/A | E123: SINGLE FAM RES. | F123: 5080843 | G123: 354995 | H123: YES | I123: YES | J123: 44098
A124: DHI Title of Nevada | B124: DHI | C124: LONGLEY | D124: N/A | E124: SINGLE FAM RES. | F124: 5079970 | G124: 327995 | H124: YES | I124: YES | J124: 44096
A125: DHI Title of Nevada | B125: DHI | C125: LONGLEY | D125: N/A | E125: SINGLE FAM RES. | F125: 5082778 | G125: 363995 | H125: YES | I125: YES | J125: 44102
A126: DHI Title of Nevada | B126: DHI | C126: LONGLEY | D126: N/A | E126: SINGLE FAM RES. | F126: 5082064 | G126: 461210 | H126: YES | I126: YES | J126: 44099
A127: DHI Title of Nevada | B127: DHI | C127: LONGLEY | D127: N/A | E127: SINGLE FAM RES. | F127: 5081510 | G127: 481295 | H127: YES | I127: YES | J127: 44099
A128: DHI Title of Nevada | B128: DHI | C128: LONGLEY | D128: N/A | E128: SINGLE FAM RES. | F128: 5082719 | G128: 309995 | H128: YES | I128: YES | J128: 44102
A129: DHI Title of Nevada | B129: DHI | C129: LONGLEY | D129: N/A | E129: SINGLE FAM RES. | F129: 5076159 | G129: 279995 | H129: YES | I129: YES | J129: 44085
A130: DHI Title of Nevada | B130: DHI | C130: LONGLEY | D130: N/A | E130: SINGLE FAM RES. | F130: 5080302 | G130: 388995 | H130: YES | I130: YES | J130: 44097
A131: DHI Title of Nevada | B131: DHI | C131: LONGLEY | D131: N/A | E131: SINGLE FAM RES. | F131: 5082678 | G131: 345995 | H131: YES | I131: YES | J131: 44102
A132: DHI Title of Nevada | B132: DHI | C132: LONGLEY | D132: N/A | E132: SINGLE FAM RES. | F132: 5082683 | G132: 396995 | H132: YES | I132: YES | J132: 44102
A133: DHI Title of Nevada | B133: DHI | C133: LONGLEY | D133: N/A | E133: SINGLE FAM RES. | F133: 5080281 | G133: 356995 | H133: YES | I133: YES | J133: 44097
A134: DHI Title of Nevada | B134: DHI | C134: LONGLEY | D134: N/A | E134: SINGLE FAM RES. | F134: 5081492 | G134: 449995 | H134: YES | I134: YES | J134: 44099
A135: DHI Title of Nevada | B135: DHI | C135: LONGLEY | D135: N/A | E135: SINGLE FAM RES. | F135: 5084089 | G135: 329995 | H135: YES | I135: YES | J135: 44103
A136: First American Title | B136: FA | C136: SPARKS | D136: CY | E136: VACANT LAND | F136: 5082116 | G136: 100000 | H136: NO | I136: YES | J136: 44099
A137: First American Title | B137: FA | C137: SPARKS | D137: CY | E137: SINGLE FAM RES. | F137: 5075229 | G137: 420000 | H137: NO | I137: YES | J137: 44084
A138: First American Title | B138: FA | C138: SPARKS | D138: CY | E138: SINGLE FAM RES. | F138: 5081642 | G138: 471500 | H138: NO | I138: YES | J138: 44099
A139: First American Title | B139: FA | C139: KIETZKE | D139: NMP | E139: SINGLE FAM RES. | F139: 5080869 | G139: 435000 | H139: NO | I139: YES | J139: 44098
A140: First American Title | B140: FA | C140: SPARKS | D140: CY | E140: SINGLE FAM RES. | F140: 5077331 | G140: 600000 | H140: NO | I140: YES | J140: 44089
A141: First American Title | B141: FA | C141: KIETZKE | D141: TK | E141: CONDO/TWNHSE | F141: 5077370 | G141: 198900 | H141: NO | I141: YES | J141: 44089
A142: First American Title | B142: FA | C142: INCLINE | D142: VD | E142: CONDO/TWNHSE | F142: 5080954 | G142: 200000 | H142: NO | I142: YES | J142: 44098
A143: First American Title | B143: FA | C143: KIETZKE | D143: MLR | E143: SINGLE FAM RES. | F143: 5074979 | G143: 364900 | H143: YES | I143: YES | J143: 44083
A144: First American Title | B144: FA | C144: INCLINE | D144: VD | E144: SINGLE FAM RES. | F144: 5083866 | G144: 2100000 | H144: NO | I144: YES | J144: 44103
A145: First American Title | B145: FA | C145: KIETZKE | D145: NMP | E145: SINGLE FAM RES. | F145: 5077378 | G145: 348000 | H145: NO | I145: YES | J145: 44089
A146: First American Title | B146: FA | C146: INCLINE | D146: VD | E146: CONDO/TWNHSE | F146: 5078108 | G146: 775000 | H146: NO | I146: YES | J146: 44091
A147: First American Title | B147: FA | C147: SPARKS | D147: CY | E147: SINGLE FAM RES. | F147: 5077562 | G147: 420000 | H147: NO | I147: YES | J147: 44090
A148: First American Title | B148: FA | C148: INCLINE | D148: VD | E148: CONDO/TWNHSE | F148: 5076052 | G148: 580000 | H148: NO | I148: YES | J148: 44085
A149: First American Title | B149: FA | C149: KIETZKE | D149: TK | E149: SINGLE FAM RES. | F149: 5083287 | G149: 875000 | H149: NO | I149: YES | J149: 44102
A150: First American Title | B150: FA | C150: KIETZKE | D150: KS | E150: SINGLE FAM RES. | F150: 5083184 | G150: 405000 | H150: NO | I150: YES | J150: 44102
A151: First American Title | B151: FA | C151: LAS VEGAS | D151: NCS | E151: VACANT LAND | F151: 5076978 | G151: 2025000 | H151: NO | I151: YES | J151: 44089
A152: First American Title | B152: FA | C152: SPARKS | D152: JP | E152: SINGLE FAM RES. | F152: 5082873 | G152: 550000 | H152: NO | I152: YES | J152: 44102
A153: First American Title | B153: FA | C153: SPARKS | D153: CY | E153: SINGLE FAM RES. | F153: 5077729 | G153: 430000 | H153: NO | I153: YES | J153: 44090
A154: First American Title | B154: FA | C154: INCLINE | D154: VD | E154: SINGLE FAM RES. | F154: 5082691 | G154: 3100000 | H154: NO | I154: YES | J154: 44102
A155: First American Title | B155: FA | C155: KIETZKE | D155: TK | E155: SINGLE FAM RES. | F155: 5082229 | G155: 385000 | H155: NO | I155: YES | J155: 44099
A156: First American Title | B156: FA | C156: SPARKS | D156: JP | E156: SINGLE FAM RES. | F156: 5077699 | G156: 355000 | H156: NO | I156: YES | J156: 44090
A157: First American Title | B157: FA | C157: KIETZKE | D157: TK | E157: SINGLE FAM RES. | F157: 5083367 | G157: 725000 | H157: NO | I157: YES | J157: 44102
A158: First American Title | B158: FA | C158: SPARKS | D158: JP | E158: SINGLE FAM RES. | F158: 5077695 | G158: 339792 | H158: YES | I158: YES | J158: 44090
A159: First American Title | B159: FA | C159: KIETZKE | D159: MLR | E159: VACANT LAND | F159: 5077637 | G159: 3546203 | H159: NO | I159: YES | J159: 44090
A160: First American Title | B160: FA | C160: SPARKS | D160: CY | E160: SINGLE FAM RES. | F160: 5076361 | G160: 389500 | H160: NO | I160: YES | J160: 44088
A161: First American Title | B161: FA | C161: SPARKS | D161: CY | E161: CONDO/TWNHSE | F161: 5076394 | G161: 120000 | H161: NO | I161: YES | J161: 44088
A162: First American Title | B162: FA | C162: KIETZKE | D162: TK | E162: CONDO/TWNHSE | F162: 5076421 | G162: 275000 | H162: NO | I162: YES | J162: 44088
A163: First American Title | B163: FA | C163: KIETZKE | D163: TK | E163: SINGLE FAM RES. | F163: 5076447 | G163: 354300 | H163: NO | I163: YES | J163: 44088
A164: First American Title | B164: FA | C164: SPARKS | D164: JP | E164: SINGLE FAM RES. | F164: 5076725 | G164: 698980 | H164: NO | I164: YES | J164: 44088
A165: First American Title | B165: FA | C165: KIETZKE | D165: MLR | E165: SINGLE FAM RES. | F165: 5076168 | G165: 324900 | H165: YES | I165: YES | J165: 44085
A166: First American Title | B166: FA | C166: SPARKS | D166: CY | E166: SINGLE FAM RES. | F166: 5078542 | G166: 374000 | H166: NO | I166: YES | J166: 44092
A167: First American Title | B167: FA | C167: INCLINE | D167: VD | E167: SINGLE FAM RES. | F167: 5075398 | G167: 850000 | H167: NO | I167: YES | J167: 44084
A168: First American Title | B168: FA | C168: KIETZKE | D168: TK | E168: SINGLE FAM RES. | F168: 5077222 | G168: 410000 | H168: NO | I168: YES | J168: 44089
A169: First American Title | B169: FA | C169: SPARKS | D169: JP | E169: SINGLE FAM RES. | F169: 5080984 | G169: 381966 | H169: YES | I169: YES | J169: 44098
A170: First American Title | B170: FA | C170: KIETZKE | D170: TK | E170: SINGLE FAM RES. | F170: 5075548 | G170: 415000 | H170: NO | I170: YES | J170: 44084
A171: First American Title | B171: FA | C171: SPARKS | D171: JP | E171: SINGLE FAM RES. | F171: 5078027 | G171: 840467 | H171: YES | I171: YES | J171: 44091
A172: First American Title | B172: FA | C172: KIETZKE | D172: TK | E172: CONDO/TWNHSE | F172: 5077950 | G172: 275000 | H172: NO | I172: YES | J172: 44091
A173: First American Title | B173: FA | C173: KIETZKE | D173: TM | E173: CONDO/TWNHSE | F173: 5081018 | G173: 312000 | H173: NO | I173: YES | J173: 44098
A174: First American Title | B174: FA | C174: SP | D174: JP | E174: SINGLE FAM RES. | F174: 5076037 | G174: 943915 | H174: YES | I174: YES | J174: 44085
A175: First American Title | B175: FA | C175: KIETZKE | D175: KS | E175: SINGLE FAM RES. | F175: 5075810 | G175: 535000 | H175: NO | I175: YES | J175: 44085
A176: First American Title | B176: FA | C176: KIETZKE | D176: TK | E176: SINGLE FAM RES. | F176: 5083352 | G176: 703000 | H176: NO | I176: YES | J176: 44102
A177: First American Title | B177: FA | C177: KIETZKE | D177: MH | E177: SINGLE FAM RES. | F177: 5081050 | G177: 405000 | H177: NO | I177: YES | J177: 44098
A178: First American Title | B178: FA | C178: SPARKS | D178: JP | E178: SINGLE FAM RES. | F178: 5077152 | G178: 932183 | H178: YES | I178: YES | J178: 44089
A179: First American Title | B179: FA | C179: INCLINE | D179: VD | E179: SINGLE FAM RES. | F179: 5082245 | G179: 1900000 | H179: NO | I179: YES | J179: 44099
A180: First American Title | B180: FA | C180: INCLINE | D180: VD | E180: VACANT LAND | F180: 5077106 | G180: 148000 | H180: NO | I180: YES | J180: 44089
A181: First American Title | B181: FA | C181: INCLINE | D181: VD | E181: CONDO/TWNHSE | F181: 5077101 | G181: 1650000 | H181: NO | I181: YES | J181: 44089
A182: First American Title | B182: FA | C182: SPARKS | D182: CY | E182: SINGLE FAM RES. | F182: 5077012 | G182: 359000 | H182: NO | I182: YES | J182: 44089
A183: First American Title | B183: FA | C183: KIETZKE | D183: KS | E183: VACANT LAND | F183: 5076987 | G183: 240000 | H183: NO | I183: YES | J183: 44089
A184: First American Title | B184: FA | C184: KIETZKE | D184: TK | E184: SINGLE FAM RES. | F184: 5075358 | G184: 499000 | H184: NO | I184: YES | J184: 44084
A185: First American Title | B185: FA | C185: KIETZKE | D185: MLR | E185: COMM'L/IND'L | F185: 5077195 | G185: 3250000 | H185: NO | I185: YES | J185: 44089
A186: First American Title | B186: FA | C186: KIETZKE | D186: KS | E186: SINGLE FAM RES. | F186: 5073560 | G186: 395000 | H186: NO | I186: YES | J186: 44078
A187: First American Title | B187: FA | C187: KIETZKE | D187: MH | E187: SINGLE FAM RES. | F187: 5071845 | G187: 521000 | H187: NO | I187: YES | J187: 44075
A188: First American Title | B188: FA | C188: KIETZKE | D188: TM | E188: VACANT LAND | F188: 5073325 | G188: 45000 | H188: NO | I188: YES | J188: 44078
A189: First American Title | B189: FA | C189: KIETZKE | D189: TK | E189: SINGLE FAM RES. | F189: 5072128 | G189: 360000 | H189: NO | I189: YES | J189: 44075
A190: First American Title | B190: FA | C190: KIETZKE | D190: KS | E190: SINGLE FAM RES. | F190: 5084634 | G190: 475000 | H190: NO | I190: YES | J190: 44104
A191: First American Title | B191: FA | C191: KIETZKE | D191: TK | E191: SINGLE FAM RES. | F191: 5084613 | G191: 440000 | H191: NO | I191: YES | J191: 44104
A192: First American Title | B192: FA | C192: INCLINE | D192: VD | E192: SINGLE FAM RES. | F192: 5073399 | G192: 2050000 | H192: NO | I192: YES | J192: 44078
A193: First American Title | B193: FA | C193: INCLINE | D193: VD | E193: SINGLE FAM RES. | F193: 5079439 | G193: 2600000 | H193: NO | I193: YES | J193: 44095
A194: First American Title | B194: FA | C194: KIETZKE | D194: MLR | E194: VACANT LAND | F194: 5085086 | G194: 6500000 | H194: NO | I194: YES | J194: 44104
A195: First American Title | B195: FA | C195: KIETZKE | D195: TK | E195: CONDO/TWNHSE | F195: 5078842 | G195: 242000 | H195: NO | I195: YES | J195: 44092
A196: First American Title | B196: FA | C196: INCLINE | D196: VD | E196: SINGLE FAM RES. | F196: 5072094 | G196: 960000 | H196: NO | I196: YES | J196: 44075
A197: First American Title | B197: FA | C197: KIETZKE | D197: KS | E197: SINGLE FAM RES. | F197: 5079388 | G197: 455000 | H197: NO | I197: YES | J197: 44095
A198: First American Title | B198: FA | C198: INCLINE | D198: VD | E198: CONDO/TWNHSE | F198: 5085114 | G198: 500000 | H198: NO | I198: YES | J198: 44104
A199: First American Title | B199: FA | C199: SPARKS | D199: CY | E199: SINGLE FAM RES. | F199: 5072029 | G199: 620000 | H199: NO | I199: YES | J199: 44075
A200: First American Title | B200: FA | C200: INCLINE | D200: VD | E200: SINGLE FAM RES. | F200: 5080354 | G200: 4500000 | H200: NO | I200: YES | J200: 44097
... 1086 more rows

Sheet LOANS_LIST (hidden)
A1: FULLNAME | B1: RECBY | C1: TYPELOAN | D1: APN | E1: DOCNUM | F1: AMOUNT | G1: RECDATE | H1: LENDER | L1: 247
A2: Acme Title and Escrow | B2: ACT | C2: CONVENTIONAL | D2: 003-553-11 | E2: 5083346 | F2: 202300 | G2: 44102 | H2: GUILD MORTGAGE COMPANY
A3: Acme Title and Escrow | B3: ACT | C3: CONVENTIONAL | D3: 165-071-04 | E3: 5075541 | F3: 212000 | G3: 44084 | H3: NORTHPOINTE BANK
A4: Acme Title and Escrow | B4: ACT | C4: CONVENTIONAL | D4: 150-141-05 | E4: 5078001 | F4: 458000 | G4: 44091 | H4: BAY EQUITY LLC
A5: Acme Title and Escrow | B5: ACT | C5: CONVENTIONAL | D5: 143-063-07 | E5: 5084678 | F5: 432000 | G5: 44104 | H5: GUILD MORTGAGE COMPANY
A6: Acme Title and Escrow | B6: ACT | C6: CONVENTIONAL | D6: 036-602-03 | E6: 5079446 | F6: 235000 | G6: 44095 | H6: NEW AMERICAN FUNDING
A7: Acme Title and Escrow | B7: ACT | C7: CONVENTIONAL | D7: 045-542-06 | E7: 5084508 | F7: 312000 | G7: 44104 | H7: NORTHPOINTE BANK
A8: Acme Title and Escrow | B8: ACT | C8: CONVENTIONAL | D8: 160-913-09 | E8: 5076758 | F8: 268000 | G8: 44088 | H8: NORTHPOINTE BANK
A9: Acme Title and Escrow | B9: ACT | C9: CONVENTIONAL | D9: 530-173-26 | E9: 5084518 | F9: 280000 | G9: 44104 | H9: PRIMELENDING
A10: Acme Title and Escrow | B10: ACT | C10: CONVENTIONAL | D10: 018-013-08 | E10: 5076775 | F10: 314000 | G10: 44088 | H10: MOVEMENT MORTGAGE LLC
A11: Acme Title and Escrow | B11: ACT | C11: CONVENTIONAL | D11: 522-892-03 | E11: 5076639 | F11: 462000 | G11: 44088 | H11: PRIMELENDING
A12: Acme Title and Escrow | B12: ACT | C12: HOME EQUITY | D12: 087-071-03 | E12: 5076374 | F12: 7364 | G12: 44088 | H12: NEVADA STATE RURAL HOUSING AUTHORITY
A13: Acme Title and Escrow | B13: ACT | C13: CONVENTIONAL | D13: 029-586-11 | E13: 5072074 | F13: 275000 | G13: 44075 | H13: ONETRUST HOME LOANS
A14: Acme Title and Escrow | B14: ACT | C14: CONVENTIONAL | D14: 080-293-14 | E14: 5084499 | F14: 142500 | G14: 44104 | H14: WOLFE FINANCIAL INC
A15: Acme Title and Escrow | B15: ACT | C15: FHA | D15: 004-370-70 | E15: 5074953 | F15: 166591 | G15: 44083 | H15: BAY EQUITY LLC
A16: Acme Title and Escrow | B16: ACT | C16: VA | D16: 566-172-05 | E16: 5083945 | F16: 357316 | G16: 44103 | H16: GUILD MORTGAGE COMPANY
A17: Acme Title and Escrow | B17: ACT | C17: FHA | D17: 550-511-07 | E17: 5083964 | F17: 317387 | G17: 44103 | H17: GUILD MORTGAGE COMPANY
A18: Acme Title and Escrow | B18: ACT | C18: CONVENTIONAL | D18: 027-232-25 | E18: 5079797 | F18: 212510 | G18: 44096 | H18: GUILD MORTGAGE COMPANY
A19: Acme Title and Escrow | B19: ACT | C19: CONVENTIONAL | D19: 165-194-08 | E19: 5084450 | F19: 401000 | G19: 44104 | H19: NORTHPOINTE BANK
A20: Acme Title and Escrow | B20: ACT | C20: CONVENTIONAL | D20: 204-322-05 | E20: 5076309 | F20: 175000 | G20: 44088 | H20: CALIBER HOME LOANS INC
A21: Acme Title and Escrow | B21: ACT | C21: CONVENTIONAL | D21: 534-381-05 | E21: 5084495 | F21: 365000 | G21: 44104 | H21: NORTHPOINTE BANK
A22: Acme Title and Escrow | B22: ACT | C22: CONVENTIONAL | D22: 532-153-09 | E22: 5076431 | F22: 294000 | G22: 44088 | H22: PRIMARY RESIDENTIAL MORTGAGE INC
A23: Acme Title and Escrow | B23: ACT | C23: VA | D23: 234-672-11 | E23: 5084467 | F23: 442113 | G23: 44104 | H23: GREATER NEVADA MORTGAGE
A24: Acme Title and Escrow | B24: ACT | C24: CONVENTIONAL | D24: 160-452-01 | E24: 5073995 | F24: 315000 | G24: 44082 | H24: BAY EQUITY LLC
A25: Acme Title and Escrow | B25: ACT | C25: CONVENTIONAL | D25: 502-341-10 | E25: 5076120 | F25: 327200 | G25: 44085 | H25: GUILD MORTGAGE COMPANY
A26: Acme Title and Escrow | B26: ACT | C26: CONVENTIONAL | D26: 039-063-29 | E26: 5083274 | F26: 349800 | G26: 44102 | H26: ON Q FINANCIAL INC
A27: Acme Title and Escrow | B27: ACT | C27: CONVENTIONAL | D27: 039-613-02 | E27: 5079442 | F27: 273700 | G27: 44095 | H27: PARAMOUNT RESIDENTIAL MORTGAGE GROUP INC
A28: Acme Title and Escrow | B28: ACT | C28: CONVENTIONAL | D28: 039-063-29 | E28: 5083309 | F28: 349800 | G28: 44102 | H28: ON Q FINANCIAL INC
A29: Acme Title and Escrow | B29: ACT | C29: CONVENTIONAL | D29: 510-644-07 | E29: 5079880 | F29: 351500 | G29: 44096 | H29: ON Q FINANCIAL INC
A30: Acme Title and Escrow | B30: ACT | C30: CONVENTIONAL | D30: 015-312-04 | E30: 5083944 | F30: 144000 | G30: 44103 | H30: CALIBER HOME LOANS INC
A31: Acme Title and Escrow | B31: ACT | C31: CONVENTIONAL | D31: 508-420-05 | E31: 5079339 | F31: 183000 | G31: 44095 | H31: GUILD MORTGAGE COMPANY
A32: Acme Title and Escrow | B32: ACT | C32: CONVENTIONAL | D32: 140-613-01 | E32: 5077416 | F32: 314000 | G32: 44090 | H32: PRIMARY RESIDENTIAL MORTGAGE INC
A33: Acme Title and Escrow | B33: ACT | C33: CONVENTIONAL | D33: 556-621-15 | E33: 5075417 | F33: 323000 | G33: 44084 | H33: BAY EQUITY LLC
A34: Acme Title and Escrow | B34: ACT | C34: CONVENTIONAL | D34: 021-842-01 | E34: 5075568 | F34: 210000 | G34: 44084 | H34: NEW AMERICAN FUNDING
A35: Acme Title and Escrow | B35: ACT | C35: VA | D35: 028-411-05 | E35: 5083957 | F35: 270400 | G35: 44103 | H35: GUILD MORTGAGE COMPANY
A36: Acme Title and Escrow | B36: ACT | C36: CONVENTIONAL | D36: 534-614-02 | E36: 5075583 | F36: 470500 | G36: 44084 | H36: ONETRUST HOME LOANS
A37: Acme Title and Escrow | B37: ACT | C37: CONVENTIONAL | D37: 005-083-08 | E37: 5079306 | F37: 245800 | G37: 44095 | H37: ONETRUST HOME LOANS
A38: Acme Title and Escrow | B38: ACT | C38: CONVENTIONAL | D38: 522-311-05 | E38: 5079897 | F38: 414700 | G38: 44096 | H38: ONETRUST HOME LOANS
A39: Acme Title and Escrow | B39: ACT | C39: FHA | D39: 082-393-04 | E39: 5082305 | F39: 294539 | G39: 44099 | H39: PARAMOUNT RESIDENTIAL MORTGAGE GROUP INC
A40: Acme Title and Escrow | B40: ACT | C40: CONVENTIONAL | D40: 026-782-32 | E40: 5080203 | F40: 272000 | G40: 44097 | H40: WELLS FARGO BANK NA
A41: Acme Title and Escrow | B41: ACT | C41: CONVENTIONAL | D41: 089-563-05 | E41: 5077649 | F41: 261200 | G41: 44090 | H41: ONETRUST HOME LOANS
A42: Acme Title and Escrow | B42: ACT | C42: CONVENTIONAL | D42: 011-253-18 | E42: 5084081 | F42: 410000 | G42: 44103 | H42: PRIMELENDING
A43: Acme Title and Escrow | B43: ACT | C43: CONVENTIONAL | D43: 018-102-18 | E43: 5077614 | F43: 405000 | G43: 44090 | H43: BAY EQUITY LLC
A44: Acme Title and Escrow | B44: ACT | C44: CONVENTIONAL | D44: 165-311-27 | E44: 5084039 | F44: 385400 | G44: 44103 | H44: ON Q FINANCIAL INC
A45: Acme Title and Escrow | B45: ACT | C45: CONVENTIONAL | D45: 002-142-24 | E45: 5075370 | F45: 221900 | G45: 44084 | H45: ONETRUST HOME LOANS
A46: Acme Title and Escrow | B46: ACT | C46: CONVENTIONAL | D46: 161-122-42 | E46: 5084697 | F46: 357250 | G46: 44104 | H46: ONETRUST HOME LOANS
A47: Acme Title and Escrow | B47: ACT | C47: CONVENTIONAL | D47: 516-632-03 | E47: 5084552 | F47: 356500 | G47: 44104 | H47: ONETRUST HOME LOANS
A48: Acme Title and Escrow | B48: ACT | C48: CONVENTIONAL | D48: 160-801-23 | E48: 5074960 | F48: 289000 | G48: 44083 | H48: ONETRUST HOME LOANS
A49: Acme Title and Escrow | B49: ACT | C49: CONVENTIONAL | D49: 087-472-02 | E49: 5072552 | F49: 60000 | G49: 44076 | H49: ON Q FINANCIAL INC
A50: Acme Title and Escrow | B50: ACT | C50: CONVENTIONAL | D50: 006-121-04 | E50: 5079133 | F50: 272000 | G50: 44095 | H50: PRIMELENDING
A51: Acme Title and Escrow | B51: ACT | C51: CONVENTIONAL | D51: 518-045-02 | E51: 5080201 | F51: 307900 | G51: 44097 | H51: PARAMOUNT RESIDENTIAL MORTGAGE GROUP INC
A52: Acme Title and Escrow | B52: ACT | C52: CONVENTIONAL | D52: 005-022-09 | E52: 5075057 | F52: 282292 | G52: 44083 | H52: GUILD MORTGAGE COMPANY
A53: Acme Title and Escrow | B53: ACT | C53: CONVENTIONAL | D53: 027-034-55 | E53: 5077572 | F53: 150000 | G53: 44090 | H53: BAY EQUITY LLC
A54: Acme Title and Escrow | B54: ACT | C54: CONVENTIONAL | D54: 078-231-11 | E54: 5084693 | F54: 416200 | G54: 44104 | H54: ON Q FINANCAIL INC
A55: Acme Title and Escrow | B55: ACT | C55: CONVENTIONAL | D55: 078-262-27 | E55: 5078668 | F55: 186000 | G55: 44092 | H55: GUILD MORTGAGE COMPANY
A56: Acme Title and Escrow | B56: ACT | C56: CONVENTIONAL | D56: 039-563-15 | E56: 5078750 | F56: 262860 | G56: 44092 | H56: NEW AMERICAN FUNDING
A57: Acme Title and Escrow | B57: ACT | C57: CONVENTIONAL | D57: 090-341-13 | E57: 5084483 | F57: 268850 | G57: 44104 | H57: CALIBER HOME LOANS INC
A58: Acme Title and Escrow | B58: ACT | C58: CONVENTIONAL | D58: 017-462-05 | E58: 5075619 | F58: 392000 | G58: 44084 | H58: ONETRUST HOME LOANS
A59: Acme Title and Escrow | B59: ACT | C59: CONVENTIONAL | D59: 234-454-19 | E59: 5084436 | F59: 299000 | G59: 44104 | H59: WOLFE FINANCIAL INC
A60: Acme Title and Escrow | B60: ACT | C60: VA | D60: 089-425-01 | E60: 5075058 | F60: 377478 | G60: 44083 | H60: NEW AMERICAN FUNDING
A61: Calatlantic Title West | B61: CAL | C61: CONVENTIONAL | D61: 510-451-05 | E61: 5080605 | F61: 272000 | G61: 44097 | H61: EAGLE HOME MORTGAGE LLC
A62: Calatlantic Title West | B62: CAL | C62: CONVENTIONAL | D62: 516-301-15 | E62: 5080513 | F62: 364000 | G62: 44097 | H62: EAGLE HOME MORTGAGE LLC
A63: Calatlantic Title West | B63: CAL | C63: CONVENTIONAL | D63: 510-691-05 | E63: 5082664 | F63: 184000 | G63: 44102 | H63: EAGLE HOME MORTGAGE LLC
A64: Calatlantic Title West | B64: CAL | C64: CONVENTIONAL | D64: 127-077-25 | E64: 5079408 | F64: 300000 | G64: 44095 | H64: EAGLE HOME MORTGAGE LLC
A65: First American Title | B65: FA | C65: CONVENTIONAL | D65: 011-563-10 | E65: 5078465 | F65: 161257 | G65: 44092 | H65: GUILD MORTGAGE COMPANY
A66: First American Title | B66: FA | C66: VA | D66: 522-251-07 | E66: 5079550 | F66: 205522 | G66: 44095 | H66: LONE MORTGAGE INC
A67: First American Title | B67: FA | C67: CONVENTIONAL | D67: 526-652-10 | E67: 5074760 | F67: 306300 | G67: 44083 | H67: GUILD MORTGAGE COMPANY
A68: First American Title | B68: FA | C68: CONVENTIONAL | D68: 089-192-38 | E68: 5079603 | F68: 148000 | G68: 44096 | H68: LOANDEPOT.COM LLC
A69: First American Title | B69: FA | C69: VA | D69: 160-925-20 | E69: 5074743 | F69: 217080 | G69: 44083 | H69: LOANDEPOT.COM LLC
A70: First American Title | B70: FA | C70: CONVENTIONAL | D70: 514-121-10 | E70: 5079695 | F70: 328000 | G70: 44096 | H70: SUMMIT FUNDING INC
A71: First American Title | B71: FA | C71: CONVENTIONAL | D71: 516-253-11 | E71: 5079729 | F71: 268000 | G71: 44096 | H71: GUILD MORTGAGE COMPANY
A72: First American Title | B72: FA | C72: CONVENTIONAL | D72: 123-293-06 | E72: 5074829 | F72: 750000 | G72: 44083 | H72: WELLS FARGO BANK NA
A73: First American Title | B73: FA | C73: FHA | D73: 510-301-21 | E73: 5078571 | F73: 273368 | G73: 44092 | H73: GUILD MORTGAGE COMPANY
A74: First American Title | B74: FA | C74: CONVENTIONAL | D74: 402-302-06 | E74: 5079767 | F74: 406750 | G74: 44096 | H74: GUILD MORTGAGE COMPANY
A75: First American Title | B75: FA | C75: FHA | D75: 087-482-02 | E75: 5075387 | F75: 283926 | G75: 44084 | H75: AMERICAN PACIFIC MORTGAGE CORPORATION
A76: First American Title | B76: FA | C76: CONVENTIONAL | D76: 002-542-12 | E76: 5075336 | F76: 233065 | G76: 44084 | H76: ALL WESTERN MORTGAGE INC
A77: First American Title | B77: FA | C77: CONVENTIONAL | D77: 140-955-09 | E77: 5078669 | F77: 354500 | G77: 44092 | H77: GUILD MORTGAGE COMPANY
A78: First American Title | B78: FA | C78: CONVENTIONAL | D78: 051-511-09 | E78: 5078452 | F78: 318300 | G78: 44092 | H78: GUILD MORTGAGE COMPANY
A79: First American Title | B79: FA | C79: CONVENTIONAL | D79: 144-063-07 | E79: 5075249 | F79: 177000 | G79: 44084 | H79: UNITED WHOLESALE MORTGAGE
A80: First American Title | B80: FA | C80: CONVENTIONAL | D80: 124-031-65 | E80: 5078466 | F80: 439000 | G80: 44092 | H80: UNITED WHOLESALE MORTGAGE
A81: First American Title | B81: FA | C81: CONVENTIONAL | D81: 568-075-09 | E81: 5076118 | F81: 169500 | G81: 44085 | H81: SUMMIT FUNDING INC
A82: First American Title | B82: FA | C82: CONVENTIONAL | D82: 526-071-38 | E82: 5078535 | F82: 300000 | G82: 44092 | H82: GUARANTEED RATE INC
A83: First American Title | B83: FA | C83: CONVENTIONAL | D83: 122-211-20 | E83: 5078539 | F83: 520000 | G83: 44092 | H83: WELLS FARGO BANK NA
A84: First American Title | B84: FA | C84: CONVENTIONAL | D84: 141-254-07 | E84: 5079199 | F84: 476067 | G84: 44095 | H84: GUILD MORTGAGE COMPANY
A85: First American Title | B85: FA | C85: CONVENTIONAL | D85: 019-442-09 | E85: 5078560 | F85: 87200 | G85: 44092 | H85: UNITED WHOLESALE MORTGAGE
A86: First American Title | B86: FA | C86: CONVENTIONAL | D86: 518-225-06 | E86: 5079156 | F86: 271000 | G86: 44095 | H86: PRIMELENDING
A87: First American Title | B87: FA | C87: CONVENTIONAL | D87: 524-171-13 | E87: 5078573 | F87: 260000 | G87: 44092 | H87: GUILD MORTGAGE COMPANY
A88: First American Title | B88: FA | C88: VA | D88: 140-581-36 | E88: 5078662 | F88: 399261 | G88: 44092 | H88: GUILD MORTGAGE COMPANY
A89: First American Title | B89: FA | C89: CONVENTIONAL | D89: 031-060-20 | E89: 5079530 | F89: 180000 | G89: 44095 | H89: AMERICAN PACIFIC MORTGAGE CORPORATION
A90: First American Title | B90: FA | C90: CONVENTIONAL | D90: 512-172-10 | E90: 5078435 | F90: 339000 | G90: 44092 | H90: OMEGA MORTGAGE GROUP
A91: First American Title | B91: FA | C91: CONVENTIONAL | D91: 145-311-07 | E91: 5079276 | F91: 464000 | G91: 44095 | H91: CALIBER HOME LOANS INC
A92: First American Title | B92: FA | C92: CONVENTIONAL | D92: 232-661-08 | E92: 5084484 | F92: 296000 | G92: 44104 | H92: SUMMIT FUNDING INC
A93: First American Title | B93: FA | C93: CONVENTIONAL | D93: 502-100-14 | E93: 5078718 | F93: 307000 | G93: 44092 | H93: FLAGSTAR BANK FSB
A94: First American Title | B94: FA | C94: VA | D94: 083-871-20 | E94: 5076154 | F94: 153055 | G94: 44085 | H94: FREEDOM MORTGAGE CORPORATION
A95: First American Title | B95: FA | C95: CONVENTIONAL | D95: 084-592-12 | E95: 5076153 | F95: 125000 | G95: 44085 | H95: LOANDEPOT.COM LLC
A96: First American Title | B96: FA | C96: CONVENTIONAL | D96: 530-363-10 | E96: 5076918 | F96: 300255 | G96: 44089 | H96: GUILD MORTGAGE COMPANY
A97: First American Title | B97: FA | C97: FHA | D97: 570-021-01 | E97: 5076944 | F97: 287630 | G97: 44089 | H97: GUILD MORTGAGE COMPANY
A98: First American Title | B98: FA | C98: CONVENTIONAL | D98: 514-492-12 | E98: 5076988 | F98: 347095 | G98: 44089 | H98: GUILD MORTGAGE COMPANY
A99: First American Title | B99: FA | C99: CONVENTIONAL | D99: 510-644-05 | E99: 5076989 | F99: 250000 | G99: 44089 | H99: GUILD MORTGAGE COMPANY
A100: First American Title | B100: FA | C100: CONVENTIONAL | D100: 124-032-08 | E100: 5076992 | F100: 508746 | G100: 44089 | H100: PLANET HOME LENDING LLC
A101: First American Title | B101: FA | C101: CONVENTIONAL | D101: 021-314-20 | E101: 5077088 | F101: 197050 | G101: 44089 | H101: GUILD MORTGAGE COMPANY
A102: First American Title | B102: FA | C102: CONVENTIONAL | D102: 085-142-05 | E102: 5076782 | F102: 213750 | G102: 44088 | H102: GUILD MORTGAGE COMPANY
A103: First American Title | B103: FA | C103: CONVENTIONAL | D103: 030-461-18 | E103: 5074920 | F103: 279200 | G103: 44083 | H103: NEW AMERICAN FUNDING
A104: First American Title | B104: FA | C104: FHA | D104: 010-161-04 | E104: 5079475 | F104: 712500 | G104: 44095 | H104: AMERICAN ADVISORS GROUP
A105: First American Title | B105: FA | C105: CONVENTIONAL | D105: 023-430-04 | E105: 5079290 | F105: 266000 | G105: 44095 | H105: FAIRWAY INDEPENDENT MORTGAGE CORPORATION
A106: First American Title | B106: FA | C106: CONVENTIONAL | D106: 007-372-05 | E106: 5079304 | F106: 192500 | G106: 44095 | H106: NEW AMERICAN FUNDING
A107: First American Title | B107: FA | C107: CONVENTIONAL | D107: 028-343-07 | E107: 5079308 | F107: 320557 | G107: 44095 | H107: NEW AMERICAN FUNDING
A108: First American Title | B108: FA | C108: CONVENTIONAL | D108: 030-134-04 | E108: 5079315 | F108: 256000 | G108: 44095 | H108: HOMETOWN LENDERS INC
A109: First American Title | B109: FA | C109: CONVENTIONAL | D109: 554-151-17 | E109: 5079330 | F109: 216500 | G109: 44095 | H109: FINANCE OF AMERICA MORTGAGE LLC
A110: First American Title | B110: FA | C110: CONVENTIONAL | D110: 080-341-06 | E110: 5079337 | F110: 206100 | G110: 44095 | H110: GUILD MORTGAGE COMPANY
A111: First American Title | B111: FA | C111: CONVENTIONAL | D111: 556-342-06 | E111: 5080370 | F111: 11000 | G111: 44097 | H111: AMERICA FIRST FEDERAL CREDIT UNION
A112: First American Title | B112: FA | C112: COMMERCIAL | D112: 011-327-02 | E112: 5078086 | F112: 693000 | G112: 44091 | H112: AMERICAN RIVER BANK
A113: First American Title | B113: FA | C113: CONVENTIONAL | D113: 516-202-08 | E113: 5083897 | F113: 227050 | G113: 44103 | H113: GUILD MORTGAGE COMPANY
A114: First American Title | B114: FA | C114: CONVENTIONAL | D114: 527-071-08 | E114: 5079142 | F114: 345000 | G114: 44095 | H114: CARDINAL FINANCIAL COMPANY LIMITED PARTNERSHIP
A115: First American Title | B115: FA | C115: CONVENTIONAL | D115: 140-394-31 | E115: 5074793 | F115: 153400 | G115: 44083 | H115: NEW AMERICAN FUNDING
A116: First American Title | B116: FA | C116: CONVENTIONAL | D116: 204-473-02 | E116: 5079372 | F116: 270000 | G116: 44095 | H116: GUILD MORTGAGE COMPANY
A117: First American Title | B117: FA | C117: CONVENTIONAL | D117: 502-462-04 | E117: 5072948 | F117: 231200 | G117: 44077 | H117: GUILD MORTGAGE COMPANY
A118: First American Title | B118: FA | C118: CONVENTIONAL | D118: 140-302-04 | E118: 5084686 | F118: 204000 | G118: 44104 | H118: NEW AMERICAN FUNDING
A119: First American Title | B119: FA | C119: CONVENTIONAL | D119: 131-140-32 | E119: 5084105 | F119: 385000 | G119: 44103 | H119: GUILD MORTGAGE COMPANY
A120: First American Title | B120: FA | C120: CONVENTIONAL | D120: 510-613-04 | E120: 5083984 | F120: 341500 | G120: 44103 | H120: GUILD MORTGAGE COMPANY
A121: First American Title | B121: FA | C121: CONVENTIONAL | D121: 140-071-03 | E121: 5078232 | F121: 333300 | G121: 44091 | H121: MASON MCDUFFIE MORTGAGE CORPORATION
A122: First American Title | B122: FA | C122: CONVENTIONAL | D122: 160-364-31 | E122: 5084679 | F122: 396324 | G122: 44104 | H122: NATIONSTAR MORTGAGE LLC
A123: First American Title | B123: FA | C123: CONVENTIONAL | D123: 030-114-03 | E123: 5072428 | F123: 150000 | G123: 44076 | H123: UNITED FEDERAL CREDIT UNION
A124: First American Title | B124: FA | C124: CONVENTIONAL | D124: 514-201-07 | E124: 5084658 | F124: 280000 | G124: 44104 | H124: GUILD MORTGAGE COMPANY
A125: First American Title | B125: FA | C125: FHA | D125: 508-271-10 | E125: 5071919 | F125: 234025 | G125: 44075 | H125: NEW AMERICAN FUNDING
A126: First American Title | B126: FA | C126: CONVENTIONAL | D126: 017-123-33 | E126: 5073158 | F126: 494000 | G126: 44077 | H126: UNITED WHOLESALE MORTGAGE
A127: First American Title | B127: FA | C127: CONVENTIONAL | D127: 044-092-02 | E127: 5083920 | F127: 246000 | G127: 44103 | H127: GUILD MORTGAGE COMPANY
A128: First American Title | B128: FA | C128: CONVENTIONAL | D128: 039-385-14 | E128: 5084110 | F128: 242500 | G128: 44103 | H128: ALL WESTERN MORTGAGE INC
A129: First American Title | B129: FA | C129: CONVENTIONAL | D129: 036-601-24 | E129: 5071861 | F129: 164100 | G129: 44075 | H129: WELLS FARGO BANK NA
A130: First American Title | B130: FA | C130: CONVENTIONAL | D130: 030-532-09 | E130: 5084892 | F130: 276000 | G130: 44104 | H130: UNITED WHOLESALE MORTGAGE
A131: First American Title | B131: FA | C131: CONVENTIONAL | D131: 013-133-33 | E131: 5083924 | F131: 189000 | G131: 44103 | H131: BAY EQUITY LLC
A132: First American Title | B132: FA | C132: CONVENTIONAL | D132: 514-383-02 | E132: 5084236 | F132: 160000 | G132: 44103 | H132: ALL WESTERN MORTGAGE INC
A133: First American Title | B133: FA | C133: CONVENTIONAL | D133: 161-072-05 | E133: 5084060 | F133: 340000 | G133: 44103 | H133: CALIBER HOME LOANS INC
A134: First American Title | B134: FA | C134: CONVENTIONAL | D134: 532-282-04 | E134: 5084897 | F134: 438750 | G134: 44104 | H134: GUILD MORTGAGE COMPANY
A135: First American Title | B135: FA | C135: CREDIT LINE | D135: 122-129-17 | E135: 5073221 | F135: 500000 | G135: 44078 | H135: FIRST REPUBLIC BANK
A136: First American Title | B136: FA | C136: CONSTRUCTION | D136: 125-172-11 | E136: 5073176 | F136: 1000000 | G136: 44077 | H136: UNITED FEDERAL CREDIT UNION
A137: First American Title | B137: FA | C137: CONVENTIONAL | D137: 036-125-02 | E137: 5085236 | F137: 292400 | G137: 44104 | H137: AMERICAN PACIFIC MORTGAGE CORPORATION
A138: First American Title | B138: FA | C138: CONVENTIONAL | D138: 045-690-31 | E138: 5084061 | F138: 325000 | G138: 44103 | H138: GUILD MORTGAGE COMPANY
A139: First American Title | B139: FA | C139: CONVENTIONAL | D139: 083-871-05 | E139: 5084573 | F139: 273000 | G139: 44104 | H139: GREATER NEVADA MORTGAGE
A140: First American Title | B140: FA | C140: CONVENTIONAL | D140: 143-132-13 | E140: 5072334 | F140: 378000 | G140: 44076 | H140: NAVY FEDERAL CREDIT UNION
A141: First American Title | B141: FA | C141: CONVENTIONAL | D141: 042-290-02 | E141: 5084065 | F141: 412000 | G141: 44103 | H141: CALIBER HOME LOANS INC
A142: First American Title | B142: FA | C142: CONVENTIONAL | D142: 033-162-07 | E142: 5084868 | F142: 168975 | G142: 44104 | H142: GUILD MORTGAGE COMPANY
A143: First American Title | B143: FA | C143: CONVENTIONAL | D143: 165-153-04 | E143: 5084867 | F143: 371900 | G143: 44104 | H143: CARDINAL FINANCIAL COMPANY LIMITED PARTNERSHIP
A144: First American Title | B144: FA | C144: CONVENTIONAL | D144: 510-463-11 | E144: 5075179 | F144: 348500 | G144: 44084 | H144: CALIBER HOME LOANS INC
A145: First American Title | B145: FA | C145: CONVENTIONAL | D145: 524-391-16 | E145: 5079049 | F145: 248000 | G145: 44095 | H145: GUILD MORTGAGE COMPANY
A146: First American Title | B146: FA | C146: CONVENTIONAL | D146: 087-661-24 | E146: 5075027 | F146: 207000 | G146: 44083 | H146: WESTCOAST MORTGAGE GROUP & REALTY COMPANY
A147: First American Title | B147: FA | C147: VA | D147: 140-282-07 | E147: 5075442 | F147: 288800 | G147: 44084 | H147: VALLEY WEST CORPORATION; VALLEY WEST MORTGAGE
A148: First American Title | B148: FA | C148: CONVENTIONAL | D148: 004-052-21 | E148: 5078557 | F148: 125000 | G148: 44092 | H148: NEW AMERICAN FUNDING
A149: First American Title | B149: FA | C149: CONVENTIONAL | D149: 232-310-04 | E149: 5072429 | F149: 484000 | G149: 44076 | H149: LOANDEPOT.COM LLC
A150: First American Title | B150: FA | C150: CONVENTIONAL | D150: 005-084-08 | E150: 5085014 | F150: 272648 | G150: 44104 | H150: WELCOME HOME FUNDING LLC
A151: First American Title | B151: FA | C151: CONVENTIONAL | D151: 530-192-24 | E151: 5083952 | F151: 270000 | G151: 44103 | H151: GUILD MORTGAGE COMPANY
A152: First American Title | B152: FA | C152: CONSTRUCTION | D152: 041-051-06 | E152: 5073058 | F152: 1700000 | G152: 44077 | H152: NEVADA STATE BANK
A153: First American Title | B153: FA | C153: CONVENTIONAL | D153: 140-892-25 | E153: 5084424 | F153: 176800 | G153: 44104 | H153: UNITED FEDERAL CREDIT UNION
A154: First American Title | B154: FA | C154: CONVENTIONAL | D154: 165-143-05 | E154: 5071899 | F154: 371000 | G154: 44075 | H154: FLAGSTAR BANK FSB
A155: First American Title | B155: FA | C155: CONVENTIONAL | D155: 514-581-03 | E155: 5084502 | F155: 406600 | G155: 44104 | H155: WELLS FARGO BANK NA
A156: First American Title | B156: FA | C156: CONVENTIONAL | D156: 001-393-21 | E156: 5075248 | F156: 294500 | G156: 44084 | H156: UNITED WHOLESALE MORTGAGE
A157: First American Title | B157: FA | C157: CONVENTIONAL | D157: 514-061-20 | E157: 5083941 | F157: 194000 | G157: 44103 | H157: ENTERPRISE BANK & TRUST
A158: First American Title | B158: FA | C158: CONVENTIONAL | D158: 534-301-02 | E158: 5072411 | F158: 340000 | G158: 44076 | H158: WELLS FARGO BANK NA
A159: First American Title | B159: FA | C159: CONVENTIONAL | D159: 208-601-13 | E159: 5072109 | F159: 246800 | G159: 44075 | H159: GREAT BASIN FEDERAL CREDIT UNION
A160: First American Title | B160: FA | C160: CONVENTIONAL | D160: 036-504-04 | E160: 5085127 | F160: 192550 | G160: 44104 | H160: ALL WESTERN MORTGAGE INC
A161: First American Title | B161: FA | C161: CONVENTIONAL | D161: 089-192-45 | E161: 5083995 | F161: 172000 | G161: 44103 | H161: HOMETOWN LENDERS INC
A162: First American Title | B162: FA | C162: CONVENTIONAL | D162: 084-611-05 | E162: 5084513 | F162: 370600 | G162: 44104 | H162: GUILD MORTGAGE COMPANY
A163: First American Title | B163: FA | C163: VA | D163: 050-232-22 | E163: 5072905 | F163: 359946 | G163: 44077 | H163: WELCOME HOME FUNDING LLC
A164: First American Title | B164: FA | C164: CONVENTIONAL | D164: 520-032-04 | E164: 5084673 | F164: 236540 | G164: 44104 | H164: GUILD MORTGAGE COMPANY
A165: First American Title | B165: FA | C165: FHA | D165: 165-312-15 | E165: 5084931 | F165: 370722 | G165: 44104 | H165: FREEDOM MORTGAGE CORPORATION
A166: First American Title | B166: FA | C166: CONVENTIONAL | D166: 200-413-01 | E166: 5072198 | F166: 297450 | G166: 44075 | H166: WESTCOAST MORTGAGE GROUP & REALTY COMPANY
A167: First American Title | B167: FA | C167: CONVENTIONAL | D167: 042-323-34 | E167: 5072729 | F167: 342000 | G167: 44076 | H167: FINANCE OF AMERICA MORTGAGE LLC
A168: First American Title | B168: FA | C168: CONVENTIONAL | D168: 522-511-13 | E168: 5084507 | F168: 510400 | G168: 44104 | H168: GREATER NEVADA MORTGAGE
A169: First American Title | B169: FA | C169: FHA | D169: 033-043-01 | E169: 5083599 | F169: 275905 | G169: 44102 | H169: MASON MCDUFFIE MORTGAGE CORPORATION
A170: First American Title | B170: FA | C170: FHA | D170: 090-374-06 | E170: 5074180 | F170: 293040 | G170: 44082 | H170: NEW AMERICAN FUNDING
A171: First American Title | B171: FA | C171: CONVENTIONAL | D171: 526-631-08 | E171: 5082985 | F171: 317500 | G171: 44102 | H171: HOMETOWN LENDERS INC
A172: First American Title | B172: FA | C172: CONVENTIONAL | D172: 083-492-09 | E172: 5083113 | F172: 292100 | G172: 44102 | H172: SNAPFI INC
A173: First American Title | B173: FA | C173: CONVENTIONAL | D173: 534-692-01 | E173: 5083281 | F173: 378000 | G173: 44102 | H173: GUILD MORTGAGE COMPANY
A174: First American Title | B174: FA | C174: HARD MONEY | D174: 224-151-07 | E174: 5081219 | F174: 748000 | G174: 44098 | H174: HARDY ROBERT S TR; HARDY ROBERT S TRUST
A175: First American Title | B175: FA | C175: CONVENTIONAL | D175: 520-031-17 | E175: 5083328 | F175: 439500 | G175: 44102 | H175: GUILD MORTGAGE COMPANY
A176: First American Title | B176: FA | C176: CONVENTIONAL | D176: 141-173-05 | E176: 5082749 | F176: 369500 | G176: 44102 | H176: AXIA FINANCIAL LLC
A177: First American Title | B177: FA | C177: FHA | D177: 080-332-15 | E177: 5073812 | F177: 265727 | G177: 44082 | H177: FREEDOM MORTGAGE CORPORATION
A178: First American Title | B178: FA | C178: CONVENTIONAL | D178: 003-276-02 | E178: 5083530 | F178: 273500 | G178: 44102 | H178: SIERRA PACIFIC MORTGAGE COMPANY INC
A179: First American Title | B179: FA | C179: CONVENTIONAL | D179: 516-344-01 | E179: 5083541 | F179: 283171 | G179: 44102 | H179: GUILD MORTGAGE COMPANY
A180: First American Title | B180: FA | C180: CONVENTIONAL | D180: 538-054-07 | E180: 5082852 | F180: 311000 | G180: 44102 | H180: GUILD MORTGAGE COMPANY
A181: First American Title | B181: FA | C181: CONVENTIONAL | D181: 140-051-19 | E181: 5083563 | F181: 300000 | G181: 44102 | H181: MOVEMENT MORTGAGE LLC
A182: First American Title | B182: FA | C182: CONVENTIONAL | D182: 510-022-03 | E182: 5082851 | F182: 180000 | G182: 44102 | H182: NEW AMERICAN FUNDING
A183: First American Title | B183: FA | C183: CONVENTIONAL | D183: 132-621-02 | E183: 5083614 | F183: 182550 | G183: 44102 | H183: UNION SAVINGS BANK
A184: First American Title | B184: FA | C184: CONVENTIONAL | D184: 006-351-02 | E184: 5073555 | F184: 226600 | G184: 44078 | H184: GUILD MORTGAGE COMPANY
A185: First American Title | B185: FA | C185: VA | D185: 036-432-13 | E185: 5073523 | F185: 194000 | G185: 44078 | H185: NAVY FEDERAL CREDIT UNION
A186: First American Title | B186: FA | C186: CONVENTIONAL | D186: 049-613-02 | E186: 5083881 | F186: 168000 | G186: 44103 | H186: AXIA FINANCIAL LLC
A187: First American Title | B187: FA | C187: CONVENTIONAL | D187: 140-242-10 | E187: 5083316 | F187: 252200 | G187: 44102 | H187: GUILD MORTGAGE COMPANY
A188: First American Title | B188: FA | C188: CONVENTIONAL | D188: 030-284-03 | E188: 5074161 | F188: 303261 | G188: 44082 | H188: NEW AMERICAN FUNDING
A189: First American Title | B189: FA | C189: CONVENTIONAL | D189: 036-473-22 | E189: 5074263 | F189: 291005 | G189: 44082 | H189: NEW AMERICAN FUNDING
A190: First American Title | B190: FA | C190: HARD MONEY | D190: 003-292-02, 16, 17 & 22 | E190: 5080497 | F190: 41200 | G190: 44097 | H190: HOFF STEPHEN R
A191: First American Title | B191: FA | C191: FHA | D191: 087-043-09 | E191: 5080538 | F191: 179792 | G191: 44097 | H191: AMERICAN PACIFIC MORTGAGE CORPORATION
A192: First American Title | B192: FA | C192: CONVENTIONAL | D192: 021-222-02 | E192: 5080928 | F192: 270000 | G192: 44098 | H192: SNAPFI INC
A193: First American Title | B193: FA | C193: CONVENTIONAL | D193: 208-311-30 | E193: 5074191 | F193: 248000 | G193: 44082 | H193: CALIBER HOME LOANS INC
A194: First American Title | B194: FA | C194: CONVENTIONAL | D194: 152-304-02 | E194: 5083562 | F194: 362000 | G194: 44102 | H194: ALL WESTERN MORTGAGE INC
A195: First American Title | B195: FA | C195: CONVENTIONAL | D195: 014-082-06 | E195: 5074358 | F195: 225000 | G195: 44082 | H195: ALL WESTERN MORTGAGE INC
A196: First American Title | B196: FA | C196: CONVENTIONAL | D196: 001-501-12 | E196: 5084011 | F196: 295000 | G196: 44103 | H196: NEW AMERICAN FUNDING
A197: First American Title | B197: FA | C197: CONVENTIONAL | D197: 152-874-02 | E197: 5076834 | F197: 1451250 | G197: 44089 | H197: FIRST INTERSTATE BANK
A198: First American Title | B198: FA | C198: CONVENTIONAL | D198: 528-213-07 | E198: 5080350 | F198: 323600 | G198: 44097 | H198: GUILD MORTGAGE COMPANY
A199: First American Title | B199: FA | C199: CONVENTIONAL | D199: 028-473-18 | E199: 5080331 | F199: 187500 | G199: 44097 | H199: GREATER NEVADA MORTGAGE
A200: First American Title | B200: FA | C200: CONVENTIONAL | D200: 160-431-01 | E200: 5079773 | F200: 205000 | G200: 44096 | H200: SNAPFI INC
... 1099 more rows

Sheet SALESLOANSLIST (hidden)
A1: FULLNAME | B1: RECBY | C1: AMOUNT | D1: RECDATE | E1: DOCTYPE | L1: 896
A2: Acme Title and Escrow | B2: ACT | C2: 900000 | D2: 44095 | E2: Deed
A3: Acme Title and Escrow | B3: ACT | C3: 225000 | D3: 44097 | E3: Deed
A4: Acme Title and Escrow | B4: ACT | C4: 140000 | D4: 44103 | E4: Deed
A5: Acme Title and Escrow | B5: ACT | C5: 268500 | D5: 44077 | E5: Deed
A6: Acme Title and Escrow | B6: ACT | C6: 342000 | D6: 44077 | E6: Deed
A7: Acme Title and Escrow | B7: ACT | C7: 335000 | D7: 44077 | E7: Deed
A8: Acme Title and Escrow | B8: ACT | C8: 360000 | D8: 44083 | E8: Deed
A9: Acme Title and Escrow | B9: ACT | C9: 495000 | D9: 44083 | E9: Deed
A10: Acme Title and Escrow | B10: ACT | C10: 295000 | D10: 44096 | E10: Deed
A11: Acme Title and Escrow | B11: ACT | C11: 375000 | D11: 44098 | E11: Deed
A12: Acme Title and Escrow | B12: ACT | C12: 400000 | D12: 44078 | E12: Deed
A13: Acme Title and Escrow | B13: ACT | C13: 250000 | D13: 44085 | E13: Deed
A14: Acme Title and Escrow | B14: ACT | C14: 577000 | D14: 44078 | E14: Deed
A15: Acme Title and Escrow | B15: ACT | C15: 415000 | D15: 44104 | E15: Deed
A16: Acme Title and Escrow | B16: ACT | C16: 390000 | D16: 44088 | E16: Deed
A17: Acme Title and Escrow | B17: ACT | C17: 242000 | D17: 44099 | E17: Deed
A18: Acme Title and Escrow | B18: ACT | C18: 334900 | D18: 44082 | E18: Deed
A19: Acme Title and Escrow | B19: ACT | C19: 272500 | D19: 44082 | E19: Deed
A20: Acme Title and Escrow | B20: ACT | C20: 575000 | D20: 44089 | E20: Deed
A21: Acme Title and Escrow | B21: ACT | C21: 550000 | D21: 44103 | E21: Deed
A22: Acme Title and Escrow | B22: ACT | C22: 336000 | D22: 44099 | E22: Deed
A23: Acme Title and Escrow | B23: ACT | C23: 250000 | D23: 44084 | E23: Deed
A24: Acme Title and Escrow | B24: ACT | C24: 375000 | D24: 44102 | E24: Deed
A25: Acme Title and Escrow | B25: ACT | C25: 299000 | D25: 44104 | E25: Deed Of Trust
A26: Acme Title and Escrow | B26: ACT | C26: 273700 | D26: 44095 | E26: Deed Of Trust
A27: Acme Title and Escrow | B27: ACT | C27: 314000 | D27: 44088 | E27: Deed Of Trust
A28: Acme Title and Escrow | B28: ACT | C28: 410000 | D28: 44103 | E28: Deed Of Trust
A29: Acme Title and Escrow | B29: ACT | C29: 268000 | D29: 44088 | E29: Deed Of Trust
A30: Acme Title and Escrow | B30: ACT | C30: 405000 | D30: 44090 | E30: Deed Of Trust
A31: Acme Title and Escrow | B31: ACT | C31: 235000 | D31: 44095 | E31: Deed Of Trust
A32: Acme Title and Escrow | B32: ACT | C32: 142500 | D32: 44104 | E32: Deed Of Trust
A33: Acme Title and Escrow | B33: ACT | C33: 261200 | D33: 44090 | E33: Deed Of Trust
A34: Acme Title and Escrow | B34: ACT | C34: 385400 | D34: 44103 | E34: Deed Of Trust
A35: Acme Title and Escrow | B35: ACT | C35: 60000 | D35: 44076 | E35: Deed Of Trust
A36: Acme Title and Escrow | B36: ACT | C36: 401000 | D36: 44104 | E36: Deed Of Trust
A37: Acme Title and Escrow | B37: ACT | C37: 356500 | D37: 44104 | E37: Deed Of Trust
A38: Acme Title and Escrow | B38: ACT | C38: 442113 | D38: 44104 | E38: Deed Of Trust
A39: Acme Title and Escrow | B39: ACT | C39: 294539 | D39: 44099 | E39: Deed Of Trust
A40: Acme Title and Escrow | B40: ACT | C40: 365000 | D40: 44104 | E40: Deed Of Trust
A41: Acme Title and Escrow | B41: ACT | C41: 289000 | D41: 44083 | E41: Deed Of Trust
A42: Acme Title and Escrow | B42: ACT | C42: 183000 | D42: 44095 | E42: Deed Of Trust
A43: Acme Title and Escrow | B43: ACT | C43: 166591 | D43: 44083 | E43: Deed Of Trust
A44: Acme Title and Escrow | B44: ACT | C44: 282292 | D44: 44083 | E44: Deed Of Trust
A45: Acme Title and Escrow | B45: ACT | C45: 245800 | D45: 44095 | E45: Deed Of Trust
A46: Acme Title and Escrow | B46: ACT | C46: 272000 | D46: 44095 | E46: Deed Of Trust
A47: Acme Title and Escrow | B47: ACT | C47: 314000 | D47: 44090 | E47: Deed Of Trust
A48: Acme Title and Escrow | B48: ACT | C48: 202300 | D48: 44102 | E48: Deed Of Trust
A49: Acme Title and Escrow | B49: ACT | C49: 150000 | D49: 44090 | E49: Deed Of Trust
A50: Acme Title and Escrow | B50: ACT | C50: 144000 | D50: 44103 | E50: Deed Of Trust
A51: Acme Title and Escrow | B51: ACT | C51: 186000 | D51: 44092 | E51: Deed Of Trust
A52: Acme Title and Escrow | B52: ACT | C52: 357316 | D52: 44103 | E52: Deed Of Trust
A53: Acme Title and Escrow | B53: ACT | C53: 270400 | D53: 44103 | E53: Deed Of Trust
A54: Acme Title and Escrow | B54: ACT | C54: 349800 | D54: 44102 | E54: Deed Of Trust
A55: Acme Title and Escrow | B55: ACT | C55: 317387 | D55: 44103 | E55: Deed Of Trust
A56: Acme Title and Escrow | B56: ACT | C56: 349800 | D56: 44102 | E56: Deed Of Trust
A57: Acme Title and Escrow | B57: ACT | C57: 262860 | D57: 44092 | E57: Deed Of Trust
A58: Acme Title and Escrow | B58: ACT | C58: 268850 | D58: 44104 | E58: Deed Of Trust
A59: Acme Title and Escrow | B59: ACT | C59: 377478 | D59: 44083 | E59: Deed Of Trust
A60: Acme Title and Escrow | B60: ACT | C60: 416200 | D60: 44104 | E60: Deed Of Trust
A61: Acme Title and Escrow | B61: ACT | C61: 175000 | D61: 44088 | E61: Deed Of Trust
A62: Acme Title and Escrow | B62: ACT | C62: 458000 | D62: 44091 | E62: Deed Of Trust
A63: Acme Title and Escrow | B63: ACT | C63: 210000 | D63: 44084 | E63: Deed Of Trust
A64: Acme Title and Escrow | B64: ACT | C64: 470500 | D64: 44084 | E64: Deed Of Trust
A65: Acme Title and Escrow | B65: ACT | C65: 462000 | D65: 44088 | E65: Deed Of Trust
A66: Acme Title and Escrow | B66: ACT | C66: 351500 | D66: 44096 | E66: Deed Of Trust
A67: Acme Title and Escrow | B67: ACT | C67: 221900 | D67: 44084 | E67: Deed Of Trust
A68: Acme Title and Escrow | B68: ACT | C68: 7364 | D68: 44088 | E68: Deed Of Trust
A69: Acme Title and Escrow | B69: ACT | C69: 392000 | D69: 44084 | E69: Deed Of Trust
A70: Acme Title and Escrow | B70: ACT | C70: 327200 | D70: 44085 | E70: Deed Of Trust
A71: Acme Title and Escrow | B71: ACT | C71: 212000 | D71: 44084 | E71: Deed Of Trust
A72: Acme Title and Escrow | B72: ACT | C72: 315000 | D72: 44082 | E72: Deed Of Trust
A73: Acme Title and Escrow | B73: ACT | C73: 357250 | D73: 44104 | E73: Deed Of Trust
A74: Acme Title and Escrow | B74: ACT | C74: 272000 | D74: 44097 | E74: Deed Of Trust
A75: Acme Title and Escrow | B75: ACT | C75: 312000 | D75: 44104 | E75: Deed Of Trust
A76: Acme Title and Escrow | B76: ACT | C76: 280000 | D76: 44104 | E76: Deed Of Trust
A77: Acme Title and Escrow | B77: ACT | C77: 414700 | D77: 44096 | E77: Deed Of Trust
A78: Acme Title and Escrow | B78: ACT | C78: 323000 | D78: 44084 | E78: Deed Of Trust
A79: Acme Title and Escrow | B79: ACT | C79: 275000 | D79: 44075 | E79: Deed Of Trust
A80: Acme Title and Escrow | B80: ACT | C80: 294000 | D80: 44088 | E80: Deed Of Trust
A81: Acme Title and Escrow | B81: ACT | C81: 212510 | D81: 44096 | E81: Deed Of Trust
A82: Acme Title and Escrow | B82: ACT | C82: 432000 | D82: 44104 | E82: Deed Of Trust
A83: Acme Title and Escrow | B83: ACT | C83: 307900 | D83: 44097 | E83: Deed Of Trust
A84: Calatlantic Title West | B84: CAL | C84: 464074 | D84: 44091 | E84: Deed
A85: Calatlantic Title West | B85: CAL | C85: 422020 | D85: 44089 | E85: Deed
A86: Calatlantic Title West | B86: CAL | C86: 405186 | D86: 44104 | E86: Deed
A87: Calatlantic Title West | B87: CAL | C87: 429950 | D87: 44077 | E87: Deed
A88: Calatlantic Title West | B88: CAL | C88: 499950 | D88: 44097 | E88: Deed
A89: Calatlantic Title West | B89: CAL | C89: 389950 | D89: 44089 | E89: Deed
A90: Calatlantic Title West | B90: CAL | C90: 411448 | D90: 44098 | E90: Deed
A91: Calatlantic Title West | B91: CAL | C91: 475973 | D91: 44098 | E91: Deed
A92: Calatlantic Title West | B92: CAL | C92: 384208 | D92: 44103 | E92: Deed
A93: Calatlantic Title West | B93: CAL | C93: 518878 | D93: 44098 | E93: Deed
A94: Calatlantic Title West | B94: CAL | C94: 682804 | D94: 44096 | E94: Deed
A95: Calatlantic Title West | B95: CAL | C95: 397205 | D95: 44095 | E95: Deed
A96: Calatlantic Title West | B96: CAL | C96: 459838 | D96: 44095 | E96: Deed
A97: Calatlantic Title West | B97: CAL | C97: 435950 | D97: 44099 | E97: Deed
A98: Calatlantic Title West | B98: CAL | C98: 401448 | D98: 44098 | E98: Deed
A99: Calatlantic Title West | B99: CAL | C99: 425613 | D99: 44090 | E99: Deed
A100: Calatlantic Title West | B100: CAL | C100: 429950 | D100: 44096 | E100: Deed
A101: Calatlantic Title West | B101: CAL | C101: 412000 | D101: 44104 | E101: Deed
A102: Calatlantic Title West | B102: CAL | C102: 345372 | D102: 44099 | E102: Deed
A103: Calatlantic Title West | B103: CAL | C103: 624299 | D103: 44077 | E103: Deed
A104: Calatlantic Title West | B104: CAL | C104: 465000 | D104: 44096 | E104: Deed
A105: Calatlantic Title West | B105: CAL | C105: 324950 | D105: 44097 | E105: Deed
A106: Calatlantic Title West | B106: CAL | C106: 521527 | D106: 44076 | E106: Deed
A107: Calatlantic Title West | B107: CAL | C107: 497167 | D107: 44075 | E107: Deed
A108: Calatlantic Title West | B108: CAL | C108: 464950 | D108: 44078 | E108: Deed
A109: Calatlantic Title West | B109: CAL | C109: 701676 | D109: 44078 | E109: Deed
A110: Calatlantic Title West | B110: CAL | C110: 458513 | D110: 44099 | E110: Deed
A111: Calatlantic Title West | B111: CAL | C111: 406802 | D111: 44103 | E111: Deed
A112: Calatlantic Title West | B112: CAL | C112: 416739 | D112: 44085 | E112: Deed
A113: Calatlantic Title West | B113: CAL | C113: 433430 | D113: 44102 | E113: Deed
A114: Calatlantic Title West | B114: CAL | C114: 354604 | D114: 44103 | E114: Deed
A115: Calatlantic Title West | B115: CAL | C115: 394950 | D115: 44092 | E115: Deed
A116: Calatlantic Title West | B116: CAL | C116: 719950 | D116: 44082 | E116: Deed
A117: Calatlantic Title West | B117: CAL | C117: 450267 | D117: 44083 | E117: Deed
A118: Calatlantic Title West | B118: CAL | C118: 508950 | D118: 44085 | E118: Deed
A119: Calatlantic Title West | B119: CAL | C119: 419950 | D119: 44092 | E119: Deed
A120: Calatlantic Title West | B120: CAL | C120: 385129 | D120: 44103 | E120: Deed
A121: Calatlantic Title West | B121: CAL | C121: 419950 | D121: 44085 | E121: Deed
A122: Calatlantic Title West | B122: CAL | C122: 466775 | D122: 44092 | E122: Deed
A123: Calatlantic Title West | B123: CAL | C123: 464730 | D123: 44102 | E123: Deed
A124: Calatlantic Title West | B124: CAL | C124: 408777 | D124: 44103 | E124: Deed
A125: Calatlantic Title West | B125: CAL | C125: 272000 | D125: 44097 | E125: Deed Of Trust
A126: Calatlantic Title West | B126: CAL | C126: 184000 | D126: 44102 | E126: Deed Of Trust
A127: Calatlantic Title West | B127: CAL | C127: 364000 | D127: 44097 | E127: Deed Of Trust
A128: Calatlantic Title West | B128: CAL | C128: 300000 | D128: 44095 | E128: Deed Of Trust
A129: DHI Title of Nevada | B129: DHI | C129: 384995 | D129: 44099 | E129: Deed
A130: DHI Title of Nevada | B130: DHI | C130: 481295 | D130: 44099 | E130: Deed
A131: DHI Title of Nevada | B131: DHI | C131: 327995 | D131: 44096 | E131: Deed
A132: DHI Title of Nevada | B132: DHI | C132: 449995 | D132: 44099 | E132: Deed
A133: DHI Title of Nevada | B133: DHI | C133: 279995 | D133: 44085 | E133: Deed
A134: DHI Title of Nevada | B134: DHI | C134: 405995 | D134: 44104 | E134: Deed
A135: DHI Title of Nevada | B135: DHI | C135: 581465 | D135: 44078 | E135: Deed
A136: DHI Title of Nevada | B136: DHI | C136: 511783 | D136: 44099 | E136: Deed
A137: DHI Title of Nevada | B137: DHI | C137: 329995 | D137: 44103 | E137: Deed
A138: DHI Title of Nevada | B138: DHI | C138: 351995 | D138: 44096 | E138: Deed
A139: DHI Title of Nevada | B139: DHI | C139: 484666 | D139: 44104 | E139: Deed
A140: DHI Title of Nevada | B140: DHI | C140: 370995 | D140: 44099 | E140: Deed
A141: DHI Title of Nevada | B141: DHI | C141: 360995 | D141: 44102 | E141: Deed
A142: DHI Title of Nevada | B142: DHI | C142: 461210 | D142: 44099 | E142: Deed
A143: DHI Title of Nevada | B143: DHI | C143: 391495 | D143: 44102 | E143: Deed
A144: DHI Title of Nevada | B144: DHI | C144: 282455 | D144: 44099 | E144: Deed
A145: DHI Title of Nevada | B145: DHI | C145: 339995 | D145: 44095 | E145: Deed
A146: DHI Title of Nevada | B146: DHI | C146: 377995 | D146: 44092 | E146: Deed
A147: DHI Title of Nevada | B147: DHI | C147: 394995 | D147: 44088 | E147: Deed
A148: DHI Title of Nevada | B148: DHI | C148: 594995 | D148: 44095 | E148: Deed
A149: DHI Title of Nevada | B149: DHI | C149: 347290 | D149: 44104 | E149: Deed
A150: DHI Title of Nevada | B150: DHI | C150: 363995 | D150: 44102 | E150: Deed
A151: DHI Title of Nevada | B151: DHI | C151: 309995 | D151: 44102 | E151: Deed
A152: DHI Title of Nevada | B152: DHI | C152: 366995 | D152: 44099 | E152: Deed
A153: DHI Title of Nevada | B153: DHI | C153: 344995 | D153: 44097 | E153: Deed
A154: DHI Title of Nevada | B154: DHI | C154: 334995 | D154: 44102 | E154: Deed
A155: DHI Title of Nevada | B155: DHI | C155: 348995 | D155: 44102 | E155: Deed
A156: DHI Title of Nevada | B156: DHI | C156: 322995 | D156: 44098 | E156: Deed
A157: DHI Title of Nevada | B157: DHI | C157: 470801 | D157: 44091 | E157: Deed
A158: DHI Title of Nevada | B158: DHI | C158: 591275 | D158: 44098 | E158: Deed
A159: DHI Title of Nevada | B159: DHI | C159: 469995 | D159: 44102 | E159: Deed
A160: DHI Title of Nevada | B160: DHI | C160: 354995 | D160: 44098 | E160: Deed
A161: DHI Title of Nevada | B161: DHI | C161: 339995 | D161: 44102 | E161: Deed
A162: DHI Title of Nevada | B162: DHI | C162: 358995 | D162: 44098 | E162: Deed
A163: DHI Title of Nevada | B163: DHI | C163: 297995 | D163: 44103 | E163: Deed
A164: DHI Title of Nevada | B164: DHI | C164: 274995 | D164: 44097 | E164: Deed
A165: DHI Title of Nevada | B165: DHI | C165: 339995 | D165: 44104 | E165: Deed
A166: DHI Title of Nevada | B166: DHI | C166: 366995 | D166: 44104 | E166: Deed
A167: DHI Title of Nevada | B167: DHI | C167: 574995 | D167: 44103 | E167: Deed
A168: DHI Title of Nevada | B168: DHI | C168: 520441 | D168: 44098 | E168: Deed
A169: DHI Title of Nevada | B169: DHI | C169: 375495 | D169: 44103 | E169: Deed
A170: DHI Title of Nevada | B170: DHI | C170: 509945 | D170: 44097 | E170: Deed
A171: DHI Title of Nevada | B171: DHI | C171: 552591 | D171: 44092 | E171: Deed
A172: DHI Title of Nevada | B172: DHI | C172: 337995 | D172: 44104 | E172: Deed
A173: DHI Title of Nevada | B173: DHI | C173: 327995 | D173: 44084 | E173: Deed
A174: DHI Title of Nevada | B174: DHI | C174: 591323 | D174: 44092 | E174: Deed
A175: DHI Title of Nevada | B175: DHI | C175: 361000 | D175: 44098 | E175: Deed
A176: DHI Title of Nevada | B176: DHI | C176: 393995 | D176: 44084 | E176: Deed
A177: DHI Title of Nevada | B177: DHI | C177: 388995 | D177: 44097 | E177: Deed
A178: DHI Title of Nevada | B178: DHI | C178: 356995 | D178: 44097 | E178: Deed
A179: DHI Title of Nevada | B179: DHI | C179: 485000 | D179: 44098 | E179: Deed
A180: DHI Title of Nevada | B180: DHI | C180: 339995 | D180: 44098 | E180: Deed
A181: DHI Title of Nevada | B181: DHI | C181: 369995 | D181: 44084 | E181: Deed
A182: DHI Title of Nevada | B182: DHI | C182: 396995 | D182: 44102 | E182: Deed
A183: DHI Title of Nevada | B183: DHI | C183: 312685 | D183: 44103 | E183: Deed
A184: DHI Title of Nevada | B184: DHI | C184: 599995 | D184: 44103 | E184: Deed
A185: DHI Title of Nevada | B185: DHI | C185: 286295 | D185: 44099 | E185: Deed
A186: DHI Title of Nevada | B186: DHI | C186: 399995 | D186: 44089 | E186: Deed
A187: DHI Title of Nevada | B187: DHI | C187: 395995 | D187: 44103 | E187: Deed
A188: DHI Title of Nevada | B188: DHI | C188: 345995 | D188: 44102 | E188: Deed
A189: DHI Title of Nevada | B189: DHI | C189: 596465 | D189: 44099 | E189: Deed
A190: DHI Title of Nevada | B190: DHI | C190: 370995 | D190: 44099 | E190: Deed
A191: DHI Title of Nevada | B191: DHI | C191: 359995 | D191: 44090 | E191: Deed
A192: DHI Title of Nevada | B192: DHI | C192: 337995 | D192: 44104 | E192: Deed
A193: DHI Title of Nevada | B193: DHI | C193: 611375 | D193: 44099 | E193: Deed
A194: DHI Title of Nevada | B194: DHI | C194: 304995 | D194: 44092 | E194: Deed
A195: DHI Title of Nevada | B195: DHI | C195: 366995 | D195: 44082 | E195: Deed
A196: DHI Title of Nevada | B196: DHI | C196: 322995 | D196: 44088 | E196: Deed
A197: DHI Title of Nevada | B197: DHI | C197: 339995 | D197: 44104 | E197: Deed
A198: DHI Title of Nevada | B198: DHI | C198: 554840 | D198: 44092 | E198: Deed
A199: First American Title | B199: FA | C199: 381966 | D199: 44098 | E199: Deed
A200: First American Title | B200: FA | C200: 320000 | D200: 44097 | E200: Deed
... 2385 more rows
